Workbook

Sheet START
C3: Kalkulačka nákladů na výpočet nákladů na operace rekultivaci hrází
C4: verze 2.03
C8: Realizační výstup výzkumného projektu č. QJ1220029 pod názvem „Zakládání a údržba porostů hrází rybníků s ohledem na jejich využití“, financovaného MZe ČR Národní agenturou pro zemědělský výzkum - Komplexní udržitelné systémy v zemědělství „KUS“
C18: © Doc. Ing, Jan Červinka, CSc. Ing. Jiří Pospíšil, CSc.

Sheet Technologie
B3: technologie
B5: Poř. č | C5: Ukazatel | D5: Hodnota | F5: Výsledky výpočtu
B6: 1 | C6: Výnos hmoty [t/ha]
B7: 2 | C7: Cena hmoty (seno, štěpka) [Kč/t] | F7: Ukazatel [měrná jednotka] | I7: Symbol | J7: Hodnota
B8: 3 | C8: Tržba z prodeje hmoty [Kč/ha] | D8: =D7*D6 -> 0 | F8: Tržní produkce [Kč/ha] | I8: TPpt | J8: =D8+D16 -> 0
B9: 4 | C9: Sazba pojištění proti živelním pohromám [%] | F9: Variabilní náklady [Kč/ha] | I9: VNpt | J9: =U90 -> 8245.170455
C10: VN na pojištění | D10: =D8*D9/100 -> 0 | F10: Celkové náklady [Kč/ha] | I10: CNpt | J10: =U90+D11 -> 8245.170455
B11: 5 | C11: Normativ fixních nákladů podniku [Kč/ha] | F11: Příspěvek na úhradu [Kč/ha] | I11: Pupt | J11: =W92-W93 -> -8245.170455
B12: 6 | C12: Výnos vedlejšího produktu [t/ha] | F12: Dílčí hrubý zisk [Kč/ha] | I12: HZpt | J12: =W92-W94 -> -8245.170455
B13: 7 | C13: Vnitropodniková sazba vedlejšího produktu [Kč/t] | F13: Prah zisku [Kč/t] | I13: PZpt | J13: =W94/D6 -> 
B14: 8 | C14: Ocenění vedlejšího produktu [Kč/ha] | F14: Bod ukončení výroby [Kč/t] | I14: BUVpt | J14: =W93/D6 -> 
B15: 9 | C15: Vedlejší produkt započítáván do tržeb [A/N]
B16: 15 | C16: Dotace započítaná do tržeb [Kč/ha]
C17: 0
B18: Ukazatele technologie přepočtené na 1m2
B20: Poř. č. | C20: Název operace | D20: TypSoupr | E20: Opakovani | F20: Potřeba práce | G20: Potřeba PH | H20: Potřeba ZM | I20: VN osobní | J20: VN ZM | K20: VN souprava | L20: VN celkem | M20: FN souprava | N20: CN | O20: Vynásobeno koeficientem opakování
O21: Potřeba práce | P21: Potřeba PH | Q21: Potřeba ZM | R21: VNo osobní | S21: VNo ZM | T21: VNo souprava | U21: VNo celkem | V21: FNo souprava | W21: Cno
B22: 1 | C22: Sečení hrází sklon nad 18
B23: 2 | C23: Lisování_trávy_do_vaků | D23: a Lis do vaku | E23: 1 | F23: 12 | G23: 0 | H23: 800 | I23: 13.38333333 | J23: 800 | K23: 75 | L23: =I23+J23+K23 -> 888.3833333 | M23: 497.5 | N23: =L23+M23 -> 1385.883333 | O23: =E23*F23 -> 12 | P23: =E23*G23 -> 0 | Q23: =E23*H23 -> 800 | R23: =E23*I23 -> 13.38333333 | S23: =E23*J23 -> 800 | T23: =E23*K23 -> 75 | U23: =J23+K23+I23 -> 888.3833333 | V23: =E23*M23 -> 497.5 | W23: =U23+V23 -> 1385.883333
B24: 3 | C24: Hnojení_statkovými_hnojivy | D24: Massey Ferguson 5420 a RUR-5 | E24: 1 | F24: 0.8 | G24: 15 | H24: 0 | I24: 155.125 | J24: 0 | K24: 772.5 | L24: 927.625 | M24: 1421.895833 | N24: 2349.520833 | O24: 0.8 | P24: 15 | Q24: 0 | R24: 155.125 | S24: 0 | T24: 772.5 | U24: 927.625 | V24: 1421.895833 | W24: 2349.520833
B25: 4 | C25: Řez_větví | D25: Zetor 120 11 a Ořezávač větví | F25: 0.3 | G25: 12 | H25: 500 | I25: 413.6666667 | J25: 500 | K25: 700.3333333 | L25: 1614 | M25: 1128.083333 | N25: 2742.083333 | O25: 0 | P25: 0 | Q25: 0 | R25: 0 | S25: 0 | T25: 0 | U25: 1614 | V25: 0 | W25: 1614
B26: 5 | C26: Lisování_trávy | D26: Zetor 120 11 a Hranolový lis | F26: 11 | G26: 0 | H26: 800 | I26: 25.88181818 | J26: 800 | K26: 156.3636364 | L26: 982.2454545 | M26: 1039.075 | N26: 2021.320455 | O26: 0 | P26: 0 | Q26: 0 | R26: 0 | S26: 0 | T26: 0 | U26: 982.2454545 | V26: 0 | W26: 982.2454545
B27: 6 | C27: Dosazování | D27: Zetor 120 11 a Boční vrták na traktoru | F27: 0.08 | G27: 40 | H27: 0 | I27: 1551.25 | J27: 0 | K27: 2281.666667 | L27: 3832.916667 | M27: 3431.895833 | N27: 7264.8125 | O27: 0 | P27: 0 | Q27: 0 | R27: 0 | S27: 0 | T27: 0 | U27: 3832.916667 | V27: 0 | W27: 3832.916667
B28: 7 | L28: 0 | N28: 0 | O28: 0 | P28: 0 | Q28: 0 | R28: 0 | S28: 0 | T28: 0 | U28: 0 | V28: 0 | W28: 0
B29: 8 | L29: 0 | N29: 0 | O29: 0 | P29: 0 | Q29: 0 | R29: 0 | S29: 0 | T29: 0 | U29: 0 | V29: 0 | W29: 0
B30: 9 | L30: =I30+J30+K30 -> 0 | N30: =L30+M30 -> 0 | O30: =E30*F30 -> 0 | P30: =E30*G30 -> 0 | Q30: =E30*H30 -> 0 | R30: =E30*I30 -> 0 | S30: =E30*J30 -> 0 | T30: =E30*K30 -> 0 | U30: =J30+K30+I30 -> 0 | V30: =E30*M30 -> 0 | W30: =U30+V30 -> 0
B31: 10 | L31: 0 | N31: 0 | O31: 0 | P31: 0 | Q31: 0 | R31: 0 | S31: 0 | T31: 0 | U31: 0 | V31: 0 | W31: 0
B32: 11 | L32: 0 | N32: 0 | O32: 0 | P32: 0 | Q32: 0 | R32: 0 | S32: 0 | T32: 0 | U32: 0 | V32: 0 | W32: 0
B33: 12 | L33: 0 | N33: 0 | O33: 0 | P33: 0 | Q33: 0 | R33: 0 | S33: 0 | T33: 0 | U33: 0 | V33: 0 | W33: 0
B34: 13 | L34: =I34+J34+K34 -> 0 | N34: =L34+M34 -> 0 | O34: =E34*F34 -> 0 | P34: =E34*G34 -> 0 | Q34: =E34*H34 -> 0 | R34: =E34*I34 -> 0 | S34: =E34*J34 -> 0 | T34: =E34*K34 -> 0 | U34: =J34+K34+I34 -> 0 | V34: =E34*M34 -> 0 | W34: =U34+V34 -> 0
B35: 14 | L35: =I35+J35+K35 -> 0 | N35: =L35+M35 -> 0 | O35: =E35*F35 -> 0 | P35: =E35*G35 -> 0 | Q35: =E35*H35 -> 0 | R35: =E35*I35 -> 0 | S35: =E35*J35 -> 0 | T35: =E35*K35 -> 0 | U35: =J35+K35+I35 -> 0 | V35: =E35*M35 -> 0 | W35: =U35+V35 -> 0
B36: 15 | L36: 0 | N36: 0 | O36: 0 | P36: 0 | Q36: 0 | R36: 0 | S36: 0 | T36: 0 | U36: 0 | V36: 0 | W36: 0
B37: 16 | L37: 0 | N37: 0 | O37: 0 | P37: 0 | Q37: 0 | R37: 0 | S37: 0 | T37: 0 | U37: 0 | V37: 0 | W37: 0
B38: 17 | L38: 0 | N38: 0 | O38: 0 | P38: 0 | Q38: 0 | R38: 0 | S38: 0 | T38: 0 | U38: 0 | V38: 0 | W38: 0
B39: 18 | L39: 0 | N39: 0 | O39: 0 | P39: 0 | Q39: 0 | R39: 0 | S39: 0 | T39: 0 | U39: 0 | V39: 0 | W39: 0
B40: 19 | L40: 0 | N40: 0 | O40: 0 | P40: 0 | Q40: 0 | R40: 0 | S40: 0 | T40: 0 | U40: 0 | V40: 0 | W40: 0
B41: 20 | L41: 0 | N41: 0 | O41: 0 | P41: 0 | Q41: 0 | R41: 0 | S41: 0 | T41: 0 | U41: 0 | V41: 0 | W41: 0
B42: 21 | L42: 0 | N42: 0 | O42: 0 | P42: 0 | Q42: 0 | R42: 0 | S42: 0 | T42: 0 | U42: 0 | V42: 0 | W42: 0
B43: 22 | L43: 0 | N43: 0 | O43: 0 | P43: 0 | Q43: 0 | R43: 0 | S43: 0 | T43: 0 | U43: 0 | V43: 0 | W43: 0
B44: 23 | L44: 0 | N44: 0 | O44: 0 | P44: 0 | Q44: 0 | R44: 0 | S44: 0 | T44: 0 | U44: 0 | V44: 0 | W44: 0
B45: 24 | L45: =I45+J45+K45 -> 0 | N45: =L45+M45 -> 0 | O45: 0 | P45: 0 | Q45: 0 | R45: 0 | S45: 0 | T45: 0 | U45: 0 | V45: 0 | W45: 0
B46: 25 | L46: 0 | N46: 0 | O46: 0 | P46: 0 | Q46: 0 | R46: 0 | S46: 0 | T46: 0 | U46: 0 | V46: 0 | W46: 0
B47: 26 | L47: 0 | N47: 0 | O47: 0 | P47: 0 | Q47: 0 | R47: 0 | S47: 0 | T47: 0 | U47: 0 | V47: 0 | W47: 0
B48: 27 | L48: 0 | N48: 0 | O48: 0 | P48: 0 | Q48: 0 | R48: 0 | S48: 0 | T48: 0 | U48: 0 | V48: 0 | W48: 0
B49: 28 | L49: 0 | N49: 0 | O49: 0 | P49: 0 | Q49: 0 | R49: 0 | S49: 0 | T49: 0 | U49: 0 | V49: 0 | W49: 0
B50: 29 | L50: 0 | N50: 0 | O50: 0 | P50: 0 | Q50: 0 | R50: 0 | S50: 0 | T50: 0 | U50: 0 | V50: 0 | W50: 0
B51: 30 | L51: 0 | N51: 0 | O51: 0 | P51: 0 | Q51: 0 | R51: 0 | S51: 0 | T51: 0 | U51: 0 | V51: 0 | W51: 0
B52: 31 | L52: 0 | N52: 0 | O52: 0 | P52: 0 | Q52: 0 | R52: 0 | S52: 0 | T52: 0 | U52: 0 | V52: 0 | W52: 0
B53: 32 | L53: 0 | N53: 0 | O53: 0 | P53: 0 | Q53: 0 | R53: 0 | S53: 0 | T53: 0 | U53: 0 | V53: 0 | W53: 0
B54: 33 | L54: 0 | N54: 0 | O54: =E54*F54 -> 0 | P54: =E54*G54 -> 0 | Q54: =E54*H54 -> 0 | R54: =E54*I54 -> 0 | S54: =E54*J54 -> 0 | T54: =E54*K54 -> 0 | U54: =J54+K54+I54 -> 0 | V54: =E54*M54 -> 0 | W54: =U54+V54 -> 0
B55: 34 | L55: =I55+J55+K55 -> 0 | N55: =L55+M55 -> 0 | O55: =E55*F55 -> 0 | P55: =E55*G55 -> 0 | Q55: =E55*H55 -> 0 | R55: =E55*I55 -> 0 | S55: =E55*J55 -> 0 | T55: =E55*K55 -> 0 | U55: =J55+K55+I55 -> 0 | V55: =E55*M55 -> 0 | W55: =U55+V55 -> 0
B56: 35 | L56: 0 | N56: 0 | O56: 0 | P56: 0 | Q56: 0 | R56: 0 | S56: 0 | T56: 0 | U56: 0 | V56: 0 | W56: 0
B57: 36 | L57: 0 | N57: 0 | O57: 0 | P57: 0 | Q57: 0 | R57: 0 | S57: 0 | T57: 0 | U57: 0 | V57: 0 | W57: 0
B58: 37 | L58: 0 | N58: 0 | O58: 0 | P58: 0 | Q58: 0 | R58: 0 | S58: 0 | T58: 0 | U58: 0 | V58: 0 | W58: 0
B59: 38 | L59: 0 | N59: 0 | O59: 0 | P59: 0 | Q59: 0 | R59: 0 | S59: 0 | T59: 0 | U59: 0 | V59: 0 | W59: 0
B60: 39 | L60: 0 | N60: 0 | O60: 0 | P60: 0 | Q60: 0 | R60: 0 | S60: 0 | T60: 0 | U60: 0 | V60: 0 | W60: 0
B61: 40 | L61: 0 | N61: 0 | O61: 0 | P61: 0 | Q61: 0 | R61: 0 | S61: 0 | T61: 0 | U61: 0 | V61: 0 | W61: 0
B62: 41 | L62: 0 | N62: 0 | O62: 0 | P62: 0 | Q62: 0 | R62: 0 | S62: 0 | T62: 0 | U62: 0 | V62: 0 | W62: 0
B63: 42 | L63: 0 | N63: 0 | O63: 0 | P63: 0 | Q63: 0 | R63: 0 | S63: 0 | T63: 0 | U63: 0 | V63: 0 | W63: 0
B64: 43 | L64: 0 | N64: 0 | O64: 0 | P64: 0 | Q64: 0 | R64: 0 | S64: 0 | T64: 0 | U64: 0 | V64: 0 | W64: 0
B65: 44 | L65: 0 | N65: 0 | O65: 0 | P65: 0 | Q65: 0 | R65: 0 | S65: 0 | T65: 0 | U65: 0 | V65: 0 | W65: 0
B66: 45 | L66: 0 | N66: 0 | O66: 0 | P66: 0 | Q66: 0 | R66: 0 | S66: 0 | T66: 0 | U66: 0 | V66: 0 | W66: 0
B67: 46 | L67: =I67+J67+K67 -> 0 | N67: =L67+M67 -> 0 | O67: =E67*F67 -> 0 | P67: =E67*G67 -> 0 | Q67: =E67*H67 -> 0 | R67: =E67*I67 -> 0 | S67: =E67*J67 -> 0 | T67: =E67*K67 -> 0 | U67: =J67+K67+I67 -> 0 | V67: =E67*M67 -> 0 | W67: =U67+V67 -> 0
B68: 47 | L68: =I68+J68+K68 -> 0 | N68: =L68+M68 -> 0 | O68: =E68*F68 -> 0 | P68: =E68*G68 -> 0 | Q68: =E68*H68 -> 0 | R68: =E68*I68 -> 0 | S68: =E68*J68 -> 0 | T68: =E68*K68 -> 0 | U68: =J68+K68+I68 -> 0 | V68: =E68*M68 -> 0 | W68: =U68+V68 -> 0
B69: 48 | L69: 0 | N69: 0 | O69: 0 | P69: 0 | Q69: 0 | R69: 0 | S69: 0 | T69: 0 | U69: 0 | V69: 0 | W69: 0
B70: 49 | L70: 0 | N70: 0 | O70: 0 | P70: 0 | Q70: 0 | R70: 0 | S70: 0 | T70: 0 | U70: 0 | V70: 0 | W70: 0
B71: 50 | L71: 0 | N71: 0 | O71: 0 | P71: 0 | Q71: 0 | R71: 0 | S71: 0 | T71: 0 | U71: 0 | V71: 0 | W71: 0
B72: 51 | L72: 0 | N72: 0 | O72: 0 | P72: 0 | Q72: 0 | R72: 0 | S72: 0 | T72: 0 | U72: 0 | V72: 0 | W72: 0
B73: 52 | L73: 0 | N73: 0 | O73: 0 | P73: 0 | Q73: 0 | R73: 0 | S73: 0 | T73: 0 | U73: 0 | V73: 0 | W73: 0
B74: 53 | L74: 0 | N74: 0 | O74: 0 | P74: 0 | Q74: 0 | R74: 0 | S74: 0 | T74: 0 | U74: 0 | V74: 0 | W74: 0
B75: 54 | L75: =I75+J75+K75 -> 0 | N75: =L75+M75 -> 0 | O75: =E75*F75 -> 0 | P75: =E75*G75 -> 0 | Q75: =E75*H75 -> 0 | R75: =E75*I75 -> 0 | S75: =E75*J75 -> 0 | T75: =E75*K75 -> 0 | U75: =J75+K75+I75 -> 0 | V75: =E75*M75 -> 0 | W75: =U75+V75 -> 0
B76: 55 | L76: 0 | N76: 0 | O76: 0 | P76: 0 | Q76: 0 | R76: 0 | S76: 0 | T76: 0 | U76: 0 | V76: 0 | W76: 0
B77: 56 | L77: 0 | N77: 0 | O77: 0 | P77: 0 | Q77: 0 | R77: 0 | S77: 0 | T77: 0 | U77: 0 | V77: 0 | W77: 0
B78: 57 | L78: 0 | N78: 0 | O78: 0 | P78: 0 | Q78: 0 | R78: 0 | S78: 0 | T78: 0 | U78: 0 | V78: 0 | W78: 0
B79: 58 | L79: 0 | N79: 0 | O79: 0 | P79: 0 | Q79: 0 | R79: 0 | S79: 0 | T79: 0 | U79: 0 | V79: 0 | W79: 0
B80: 59 | L80: 0 | N80: 0 | O80: 0 | P80: 0 | Q80: 0 | R80: 0 | S80: 0 | T80: 0 | U80: 0 | V80: 0 | W80: 0
B81: 60 | L81: 0 | N81: 0 | O81: 0 | P81: 0 | Q81: 0 | R81: 0 | S81: 0 | T81: 0 | U81: 0 | V81: 0 | W81: 0
B82: 61 | L82: 0 | N82: 0 | O82: 0 | P82: 0 | Q82: 0 | R82: 0 | S82: 0 | T82: 0 | U82: 0 | V82: 0 | W82: 0
B83: 62 | L83: 0 | N83: 0 | O83: 0 | P83: 0 | Q83: 0 | R83: 0 | S83: 0 | T83: 0 | U83: 0 | V83: 0 | W83: 0
B84: 63
I85: Celkem na metr plochy | L85: =SUM(L23:L73)/10000 -> 0.8245170455 | M85: =SUM(M23:M73)/10000 -> 0.751845 | O85: =SUM(O23:O73) -> 12.8 | P85: 15 | Q85: 800 | R85: 168.5083333 | S85: 800 | T85: 847.5 | U85: 8245.170455 | V85: 1919.395833 | W85: 10164.56629
B87: Poř. č. | C87: Název operace | D87: TypSoupr | E87: Opakovani | F87: Potřeba práce | G87: Potřeba PH | H87: Potřeba ZM | I87: VN osobní | J87: VN ZM | K87: VN souprava | L87: VN celkem | M87: FN souprava | N87: CN | O87: Vynásobeno koeficientem opakování
O88: Potřeba práce | P88: Potřeba PH | Q88: Potřeba ZM | R88: VNo osobní | S88: VNo ZM | T88: VNo souprava | U88: VNo celkem | V88: FNo souprava | W88: Cno
T90: VN vč. pojištění | U90: =SUM(U23:U73)+D10 -> 8245.170455 | W90: =SUM(W23:W83)+D10 -> 10164.56629
S92: Tržní produkce [Kč/ha] | V92: TPpt | W92: =D8+D16 -> 0
S93: Variabilní náklady [Kč/ha] | V93: VNpt | W93: =U90 -> 8245.170455
S94: Celkové náklady [Kč/ha] | V94: CNpt | W94: =U90+D11 -> 8245.170455
S95: Příspěvek na úhradu [Kč/ha] | V95: Pupt | W95: =W92-W93 -> -8245.170455
S96: Dílčí hrubý zisk [Kč/ha] | V96: HZpt | W96: =W92-W94 -> -8245.170455
S97: Prah zisku [Kč/ha] | V97: PZpt | W97: =W94/D6 -> 
S98: Bod ukončení výroby [Kč/ha] | V98: BUVpt | W98: =W93/D6 -> 
M99: 990.6313542

Sheet Naklady
B3: Výpočet nákladů na provoz soupravy
B5: Vyber operaci: | P5: =C5 -> 0 | Q5: =C6&" "&"a"&" "&C7 -> a | S5: =D23 -> 0 | T5: =D35 -> 0 | U5: =D38+C38 -> 0 | V5: =M22 -> 0 | W5: =M23 -> 0 | X5: =M26 -> 0 | Y5: =X5+W5+V5 -> 0 | Z5: =M25 -> 0 | AB5: Operace | AC5: Enargetický prostředek | AE5: Operace | AG5: Operace | AH5: Stroj
B6: Vyber Energetický prostředek: | P6: Název operace | Q6: TypSoupr | R6: Opakovani | S6: Potřeba práce | T6: Potřeba PH | U6: Potřeba ZM | V6: VN osobní | W6: VN ZM | X6: VN souprava | Y6: VN celkem | Z6: FN souprava | AB6: =IF(DB_stroje!B6="","",DB_stroje!B6) -> Využití traktoru | AC6: =IF(DB_stroje!C6="","",DB_stroje!C6) -> Zetor 120 11 | AE6: =IF(KT!G5="","",KT!G5) -> Dosazování | AG6: =IF(DB_stroje!B30="","",DB_stroje!B30) -> Sečení beze sběru | AH6: =IF(DB_stroje!C30="","",DB_stroje!C30) -> Mulčovač nožový
B7: Vyber stroj: | AB7: =IF(DB_stroje!B6="","",DB_stroje!B6) -> Využití traktoru | AC7: =IF(DB_stroje!C6="","",DB_stroje!C6) -> Zetor 120 11 | AE7: =IF(KT!G6="","",KT!G6) -> Dosazování_a_vysazování_rostlin | AG7: =IF(DB_stroje!B31="","",DB_stroje!B31) -> Sečení beze sběru | AH7: =IF(DB_stroje!C31="","",DB_stroje!C31) -> Mulčovač kladívkový
AB8: =IF(DB_stroje!B7="","",DB_stroje!B7) -> Využití traktoru | AC8: =IF(DB_stroje!C7="","",DB_stroje!C7) -> Zetor 7340 | AE8: =IF(KT!G7="","",KT!G7) -> Dovoz_vody | AG8: =IF(DB_stroje!B32="","",DB_stroje!B32) -> Sečení beze sběru | AH8: =IF(DB_stroje!C32="","",DB_stroje!C32) -> JD 2023
B9: Vstupní parametry | C9: Energet. prostředek | D9: Stroj | E9: Jednotky | H9: Energet. prostředek | J9: Stroj | L9: Soupava | AB9: =IF(DB_stroje!B8="","",DB_stroje!B8) -> Využití traktoru | AC9: =IF(DB_stroje!C8="","",DB_stroje!C8) -> JD 5820 | AE9: =IF(KT!G8="","",KT!G8) -> drcení větví drtičem | AG9: =IF(DB_stroje!B34="","",DB_stroje!B34) -> Dovoz_vody | AH9: =IF(DB_stroje!C34="","",DB_stroje!C34) -> Cisterna
B10: Pořizovací cena | E10: [Kč] | H10: Roční | I10: Jednotkové | J10: Roční | K10: Jednotkové | L10: Roční | M10: Jednotkové | AB10: =IF(DB_stroje!B9="","",DB_stroje!B9) -> Využití traktoru | AC10: =IF(DB_stroje!C9="","",DB_stroje!C9) -> Zetor 6340 | AE10: =IF(KT!G9="","",KT!G9) -> Hloubkové_kypření | AG10: =IF(DB_stroje!B35="","",DB_stroje!B35) -> Hloubkové_kypření | AH10: =IF(DB_stroje!C35="","",DB_stroje!C35) -> Hl. kypřič
B11: Procento vlastních zdrojů | E11: [%] | G11: Položka nákladů | H11: [Kč.rok-1] | I11: [Kč/ha] | J11: [Kč.rok-1] | K11: [Kč/ha] | L11: [Kč.rok-1] | M11: [Kč/ha] | AB11: =IF(DB_stroje!B10="","",DB_stroje!B10) -> Využití traktoru | AC11: =IF(DB_stroje!C10="","",DB_stroje!C10) -> Zetor 6340 | AE11: =IF(KT!G10="","",KT!G10) -> Hluboká_orba | AG11: =IF(DB_stroje!B36="","",DB_stroje!B36) -> Hluboká_orba | AH11: =IF(DB_stroje!C36="","",DB_stroje!C36) -> smyky
B12: Sazba zúročení vlastních zdrojů | E12: [%] | G12: Amortizace | H12: =IF($C$17="ANO","0,00",$C$10/$C$24) ->  | I12: =IF(OR(D23=0,C6=""),"0",$H$12/($C$22*$D$23)) -> 0 | J12: =IF(D17="ANO","0,00",D10/D24) ->  | K12: =IF(C7="","0",(J12/D22)) -> 0 | L12: =H12+J12 ->  | M12: =I12+K12 -> 0 | AB12: =IF(DB_stroje!B11="","",DB_stroje!B11) -> Využití traktoru | AC12: =IF(DB_stroje!C11="","",DB_stroje!C11) -> Massey Ferguson 5420 | AE12: =IF(KT!G11="","",KT!G11) -> Hnojení statkovými hnojivy | AG12: =IF(DB_stroje!B37="","",DB_stroje!B37) -> Hnojení statkovými hnojivy | AH12: =IF(DB_stroje!C37="","",DB_stroje!C37) -> RUR-5
A13: ANO | B13: Koupě s využitím bankovního úvěru | E13: [ANO/NE] | G13: Zúročení VK | H13: =IF(C17="ANO","0,00",(C10*C11)*C12) -> 0 | I13: =IF(OR(D23=0,C6=""),"0",H13/(C22*D23)) -> 0 | J13: =IF(D17="ANO","0,00",(D10*D11)*D12) -> 0 | K13: =IF(C7="","0",(J13/D22)) -> 0 | L13: =H13+J13 -> 0 | M13: =I13+K13 -> 0 | AB13: =IF(DB_stroje!B12="","",DB_stroje!B12) -> Využití traktoru | AC13: =IF(DB_stroje!C12="","",DB_stroje!C12) -> Zetor 120 45 | AE13: =IF(KT!G12="","",KT!G12) -> Kultivace | AG13: =IF(DB_stroje!B38="","",DB_stroje!B38) -> Kultivace_nebo_přiorávka | AH13: =IF(DB_stroje!C38="","",DB_stroje!C38) -> Plečka
A14: NE | B14: Jednotná splátka úvěru | E14: [Kč/splátka] | G14: Náklady úvěru | H14: =IF(C17="ANO","0,00",IF(C13="ANO",((C14*C15)+C16)/C24,"0,00")) -> 0,00 | I14: =IF(OR(D23=0,C6=""),"0",H14/(C22*D23)) -> 0 | J14: =IF(D17="ANO","0,00",IF(D13="ANO",((D14*D15)+D16)/D24,"0,00")) -> 0,00 | K14: =IF(C7="","0",(J14/D22)) -> 0 | L14: =J14+H14 -> 0 | M14: =K14+I14 -> 0 | AB14: =IF(DB_stroje!B13="","",DB_stroje!B13) -> Využití traktoru | AC14: =IF(DB_stroje!C13="","",DB_stroje!C13) -> Zetor 77 45 | AE14: =IF(KT!G13="","",KT!G13) -> Kultivace_nebo_přiorávka | AG14: =IF(DB_stroje!B39="","",DB_stroje!B39) -> Lisování_trávy | AH14: =IF(DB_stroje!C39="","",DB_stroje!C39) -> Hranolový lis
B15: Počet splátek bankovního úvěru | E15: [1] | G15: Silniční daň | H15: =C25 -> 0 | I15: =IF(OR(D23=0,C6=""),"0",H15/(C22*D23)) -> 0 | J15: =IF(D25="x",0,D25) -> 0 | K15: =IF(C7="","0",(J15/D22)) -> 0 | L15: =J15+H15 -> 0 | M15: =K15+I15 -> 0 | AB15: =IF(DB_stroje!B14="","",DB_stroje!B14) -> Využití traktoru | AC15: =IF(DB_stroje!C14="","",DB_stroje!C14) -> JD6250 | AE15: =IF(KT!G14="","",KT!G14) -> Lisování_trávy | AG15: =IF(DB_stroje!B40="","",DB_stroje!B40) -> Lisování_trávy_do_vaků | AH15: =IF(DB_stroje!C40="","",DB_stroje!C40) -> Lis do vaku
B16: Náklady na pořízení úvěru | E16: [Kč] | G16: Náklady elasingu | H16: =IF(C17="ANO",(C18+(C19*C20)+C21)/C24,"0,00") -> 0,00 | I16: =IF(OR(D23=0,C6=""),"0",H16/(C22*D23)) -> 0 | J16: =IF(D17="ANO",(D18+(D19*D20)+D21)/D24,"0,00") -> 0,00 | K16: =IF(C7="","0",(J16/D22)) -> 0 | L16: =H16+J16 -> 0 | M16: =I16+K16 -> 0 | AB16: =IF(DB_stroje!B15="","",DB_stroje!B15) -> Využití traktoru | AC16: =IF(DB_stroje!C15="","",DB_stroje!C15) -> Zetor 6345 | AE16: =IF(KT!G15="","",KT!G15) -> Lisování_trávy_do_vaků | AG16: =IF(DB_stroje!B42="","",DB_stroje!B42) -> Odorávka_a_přiorávka_okrajů | AH16: =IF(DB_stroje!C42="","",DB_stroje!C42) -> Talířový pluh
B17: Koupě pomocí leasingu | E17: [ANO/NE] | G17: Povinné ručení | H17: =IF(C17="ANO","0,00",C26) -> 0 | I17: =IF(OR(D23=0,C6=""),"0",H17/(C22*D23)) -> 0 | J17: =IF(D17="ANO","0,00",IF(D26="x",0,D26)) -> 0 | K17: =IF(C7="","0",(J17/D22)) -> 0 | L17: =J17+H17 -> 0 | M17: =K17+I17 -> 0 | AB17: =IF(DB_stroje!B16="","",DB_stroje!B16) -> Využití traktoru | AC17: =IF(DB_stroje!C16="","",DB_stroje!C16) -> Zetor 6340 | AE17: =IF(KT!G16="","",KT!G16) -> nakládání trávy | AG17: =IF(DB_stroje!B43="","",DB_stroje!B43) -> Odvoz_posečené_trávy | AH17: =IF(DB_stroje!C43="","",DB_stroje!C43) -> návěs traktorový 2,5 t
B18: Náklady na akontaci | E18: [Kč] | G18: Havarijní pojištění | H18: =IF(C17="ANO","0,00",(C27*C10)/100) -> 0 | I18: =IF(OR(D23=0,C6=""),"0",H18/(C22*D23)) -> 0 | J18: =IF(D17="ANO","0,00",IF(D27="x",0,(D27*D10)/100)) -> 0 | K18: =IF(C7="","0",(J18/D22)) -> 0 | L18: =H18+J18 -> 0 | M18: =K18+I18 -> 0 | AB18: =IF(DB_stroje!B17="","",DB_stroje!B17) -> Využití traktoru | AC18: =IF(DB_stroje!C17="","",DB_stroje!C17) -> Massey Ferguson5520 | AE18: =IF(KT!G17="","",KT!G17) -> Nakládání_hnojiv | AG18: =IF(DB_stroje!B43="","",DB_stroje!B43) -> Odvoz_posečené_trávy | AH18: =IF(DB_stroje!C43="","",DB_stroje!C43) -> návěs traktorový 2,5 t
B19: Leasingová splátka | E19: [Kč/splátka] | G19: Garážování | H19: =C28*C29 -> 0 | I19: =IF(OR(D23=0,C6=""),"0",H19/(C22*D23)) -> 0 | J19: =D28*D29 -> 0 | K19: =IF(C7="","0",(J19/D22)) -> 0 | L19: =J19+H19 -> 0 | M19: =K19+I19 -> 0 | AB19: =IF(DB_stroje!B18="","",DB_stroje!B18) ->  | AC19: =IF(DB_stroje!C18="","",DB_stroje!C18) ->  | AE19: =IF(KT!G18="","",KT!G18) -> Odorávka_a_přiorávka | AG19: =IF(DB_stroje!B44="","",DB_stroje!B44) -> Odvoz_větví | AH19: =IF(DB_stroje!C44="","",DB_stroje!C44) -> Traktorový přívěs 7 t
B20: Počet leasingových splátek | E20: [1] | G20: Opravy a údržba | H20: =C30 -> 0 | I20: =IF(OR(D23=0,C6=""),"0",H20/(C22*D23)) -> 0 | J20: =D30 -> 0 | K20: =IF(C7="","0",(J20/D22)) -> 0 | L20: =H20+J20 -> 0 | M20: =I20+K20 -> 0 | AB20: =IF(DB_stroje!B19="","",DB_stroje!B19) ->  | AC20: =IF(DB_stroje!C19="","",DB_stroje!C19) ->  | AE20: =IF(KT!G19="","",KT!G19) -> Odorávka_a_přiorávka_okrajů | AG20: =IF(DB_stroje!B45="","",DB_stroje!B45) -> Orba | AH20: =IF(DB_stroje!C45="","",DB_stroje!C45) -> Pluh PH 4 007
B21: Zůstatková hodnota po skončení leasingu | E21: [Kč] | G21: PHM | K21: =IF(C7="","0",(D35*C36)) -> 0 | M21: =K21+I21 -> 0 | AB21: =IF(DB_stroje!B20="","",DB_stroje!B20) ->  | AC21: =IF(DB_stroje!C20="","",DB_stroje!C20) ->  | AE21: =IF(KT!G20="","",KT!G20) -> Odvoz větví | AG21: =IF(DB_stroje!B46="","",DB_stroje!B46) -> Pásové_hnojení_průmyslovými_hnojivy | AH21: =IF(DB_stroje!C46="","",DB_stroje!C46) -> Nesené rozmetadlo TMH Amazone
B22: Roční využití | E22: [hod/rok];[ha/hod] | G22: Práce (osobní náklady) | I22: =IF(C6="","0",(C32*(1+C33+C34)*C31)/D23) -> 0 | K22: =IF(C7="","0",((D32*(1+D33+D34)*D31)/D23)) -> 0 | M22: =K22+I22 -> 0 | AB22: =IF(DB_stroje!B21="","",DB_stroje!B21) ->  | AC22: =IF(DB_stroje!C21="","",DB_stroje!C21) ->  | AE22: =IF(KT!G21="","",KT!G21) -> Odvoz_posečené_trávy | AG22: =IF(DB_stroje!B47="","",DB_stroje!B47) -> Pásové_ošetření_travnatých_pásů | AH22: =IF(DB_stroje!C47="","",DB_stroje!C47) -> Posrřikovač s rámem
B23: Hodinnová výkonnost soupravy | E23: [ha/hod] | G23: Provozní materiál | I23: =C38 -> 0 | K23: =IF(ISNUMBER(D38),D38,"0,00") -> 0,00 | M23: =K23+I23 -> 0 | AE23: =IF(KT!G22="","",KT!G22) -> Odvoz_větví | AG23: =IF(DB_stroje!B48="","",DB_stroje!B48) -> Přeprava_materiélu | AH23: =IF(DB_stroje!C48="","",DB_stroje!C48) -> návěs automobilový 750 kg
B24: Doba pro rozpis nákladů na amortizaci | E24: [rok] | G24: Variabilní náklady | H24: =SUM(H20:H23) -> 0 | I24: =SUM(I20:I23) -> 0 | J24: =SUM(J20:J23) -> 0 | K24: =SUM(K20:K23) -> 0 | L24: =H24+J24 -> 0 | M24: =K24+I24 -> 0 | AE24: =IF(KT!G23="","",KT!G23) -> Orba | AG24: =IF(DB_stroje!B49="","",DB_stroje!B49) -> Odvoz_větví | AH24: =IF(DB_stroje!C49="","",DB_stroje!C49) -> Traktorový přívěs 5 t
B25: Silniční daň | E25: [Kč/rok] | G25: Fixní náklady | H25: =SUM(H12:H19) ->  | I25: =SUM(I12:I19) -> 0 | J25: =SUM(J12:J19) ->  | K25: =SUM(K12:K19) -> 0 | L25: =H25+J25 ->  | M25: =I25+K25 -> 0 | AE25: =IF(KT!G24="","",KT!G24) -> Pásové_hnojení_průmyslovými_hnojivy | AG25: =IF(DB_stroje!B50="","",DB_stroje!B50) -> Rosení_porostu | AH25: =IF(DB_stroje!C50="","",DB_stroje!C50) -> Rosič Laser 2000
B26: Povinné ručení | E26: [Kč/rok] | G26: Variabilní náklady - jen stroje | M26: =SUM(M20:M21) -> 0 | AE26: =IF(KT!G25="","",KT!G25) -> Pásové_ošetření_travnatých_pásů | AG26: =IF(DB_stroje!B51="","",DB_stroje!B51) -> Řez_větví | AH26: =IF(DB_stroje!C51="","",DB_stroje!C51) -> Ořezávač keřů
B27: Havarijní pojištění | E27: [%] | G27: Přímé náklady | L27: =L24+L25 ->  | M27: =M24+M25 -> 0 | AE27: =IF(KT!G26="","",KT!G26) -> přeprava nateriálu | AG27: =IF(DB_stroje!B52="","",DB_stroje!B52) -> Řez_větví | AH27: =IF(DB_stroje!C52="","",DB_stroje!C52) -> Ořezávač větví
B28: Sazba za garážování | E28: [Kč/m2/rok] | AE28: =IF(KT!G27="","",KT!G27) -> přeprava osob | AG28: =IF(DB_stroje!B53="","",DB_stroje!B53) -> Sečení se sběrem | AH28: =IF(DB_stroje!C53="","",DB_stroje!C53) -> Mulčovač JD se zásobníkem
B29: Garážovací plocha | E29: [m2] | AE29: =IF(KT!G28="","",KT!G28) -> Přeprava_materiélu | AG29: =IF(DB_stroje!B54="","",DB_stroje!B54) -> Sušení_trávy | AH29: =IF(DB_stroje!C54="","",DB_stroje!C54) -> Obraceč shrnovač rotorový
B30: Roční náklady na údržbu a opravy | E30: [Kč/rok] | AE30: =IF(KT!G29="","",KT!G29) -> Rosení_porostu | AG30: =IF(DB_stroje!B55="","",DB_stroje!B55) -> Sušení_trávy | AH30: =IF(DB_stroje!C55="","",DB_stroje!C55) -> Obraceč shrnovač dopravníkový
B31: Počet pracovníků obsluhy | E31: [-] | AE31: =IF(KT!G30="","",KT!G30) -> Řez_větví | AG31: =IF(DB_stroje!B56="","",DB_stroje!B56) -> Sušení_trávy | AH31: =IF(DB_stroje!C56="","",DB_stroje!C56) -> Mulčovač JD se zásobníkem
B32: Hodinová mzda | E32: [Kč/h] | AE32: =IF(KT!G31="","",KT!G31) -> Sečení beze sběru | AG32: =IF(DB_stroje!B57="","",DB_stroje!B57) -> přeprava osob | AH32: =IF(DB_stroje!C57="","",DB_stroje!C57) -> Přepravavník osob
B33: Zdravotní a sociální pojištění | E33: [%] | AE33: =IF(KT!G32="","",KT!G32) -> Sečení se sběrem | AG33: =IF(DB_stroje!B58="","",DB_stroje!B58) -> Orba | AH33: =IF(DB_stroje!C58="","",DB_stroje!C58) -> Pluh PH 4 007
B34: Podíl nákladů na placenou dovolenou a svátky | E34: [%] | AE34: =IF(KT!G33="","",KT!G33) -> setí trávy | AG34: =IF(DB_stroje!B59="","",DB_stroje!B59) -> Hloubkové_kypření | AH34: =IF(DB_stroje!C59="","",DB_stroje!C59) -> Hl. kypřič
B35: Spotřeba PHM | E35: [l/ha] | G35: Kalkulace nákladů na provozní materiál | AE35: =IF(KT!G34="","",KT!G34) -> shrabování trávy | AG35: =IF(DB_stroje!B57="","",DB_stroje!B57) -> přeprava osob | AH35: =IF(DB_stroje!C57="","",DB_stroje!C57) -> Přepravavník osob
B36: Průměrná cena PHM (bez DPH) | E36: [Kč/l] | G36: Jednotková cena provozního materiálu | K36: [Kč/kg; Kč/l] | AE36: =IF(KT!G35="","",KT!G35) -> Sušení_trávy | AG36: =IF(DB_stroje!B61="","",DB_stroje!B61) -> Urovnání_povrchu | AH36: =IF(DB_stroje!C61="","",DB_stroje!C61) -> smyky
B37: Koeficient nákladů na maziva | E37: [-] | G37: Aplikované množství na hektar | K37: [kg/ha; l/ha] | AE37: =IF(KT!G36="","",KT!G36) -> Urovnání_povrchu | AG37: =IF(DB_stroje!B62="","",DB_stroje!B62) -> Kultivace | AH37: =IF(DB_stroje!C62="","",DB_stroje!C62) -> Plečka
B38: Provozní materiál | E38: [Kč/ha] | G38: Náklady celkem | I38: =I36*I37 -> 0 | K38: [Kč/ha] | AE38: =IF(KT!G37="","",KT!G37) -> Vláčení | AG38: =IF(DB_stroje!B57="","",DB_stroje!B57) -> přeprava osob | AH38: =IF(DB_stroje!C57="","",DB_stroje!C57) -> Přepravavník osob
AE39: =IF(KT!G38="","",KT!G38) -> (prázdné) | AG39: =IF(DB_stroje!B64="","",DB_stroje!B64) -> Vláčení | AH39: =IF(DB_stroje!C64="","",DB_stroje!C64) -> Brány nesené
B40: Procento vlastních zdrojů vyjadřuje podíl vlastních prostředků v případě, že nákup stroje je z části financován pomocí bankovního úvěru. | AE40: =IF(KT!G39="","",KT!G39) ->  | AG40: =IF(DB_stroje!B65="","",DB_stroje!B65) -> Řez_větví | AH40: =IF(DB_stroje!C65="","",DB_stroje!C65) -> Ořezávač keřů
B41: Sazba zúročení vlastních zdrojů kapitálu představuje požadované zhodnocení vlastních prostředků použitých na nákup stroje. | AE41: =IF(KT!G40="","",KT!G40) ->  | AG41: =IF(DB_stroje!C58="","",DB_stroje!C58) -> Pluh PH 4 007 | AH41: =IF(DB_stroje!B58="","",DB_stroje!B58) -> Orba
B42: Doba pro rozpis nákladů na amortizaci je doba, po kterou bude stroj používán v podniku, nebo odepisován - pokud bude po skončení odepisování vyřazen z užívání. | AE42: =IF(KT!G41="","",KT!G41) ->  | AG42: =IF(DB_stroje!C59="","",DB_stroje!C59) -> Hl. kypřič | AH42: =IF(DB_stroje!B59="","",DB_stroje!B59) -> Hloubkové_kypření
B43: Hodinová mzda představuje část hrubé mzdy placenou obsluze bez započtení příspěvku placeného zaměstnavatelem za zaměstnance a podílu výdajů na dovolenou a placené svátky. | AE43: =IF(KT!G42="","",KT!G42) ->  | AG43: =IF(DB_stroje!C60="","",DB_stroje!C60) -> Talířový pluh | AH43: =IF(DB_stroje!B60="","",DB_stroje!B60) -> Odorávka_a_přiorávka
B44: Spotřeba PHM - představuje průměrnou spotřebu paliva při dané operaci, tato spotřeba se však může lišit v závislosti na použitém traktoru a klimatických podmínkách. | AG44: =IF(DB_stroje!C61="","",DB_stroje!C61) -> smyky | AH44: =IF(DB_stroje!B61="","",DB_stroje!B61) -> Urovnání_povrchu
B45: Provozní materiál - ve sloupci "Stroj" jsou načítány náklady na základní provozní materiál. Náklady na hnojiva a pesticidy je nutné ručně zadat ve sloupci "Energetický prostředek" | AG45: =IF(DB_stroje!C62="","",DB_stroje!C62) -> Plečka | AH45: =IF(DB_stroje!B62="","",DB_stroje!B62) -> Kultivace
B46: vzhledem k velké variabilitě, za kterou lze tyto prostředky nakoupit u jednotlivých prodejců. K výpočtu lze použít kalkulačku uvedenou vlevo, kde je nutné zadat | AG46: =IF(DB_stroje!C63="","",DB_stroje!C63) -> Kruhová brána rotační PB 4-109 | AH46: =IF(DB_stroje!B63="","",DB_stroje!B63) -> Vláčení
B47: jednotkovou cenu nakoupených herbicidů, pesticidů atp. a aplioované množství na hektar - vypočtenou cenu "Náklady celkem" je nutné následně zapsat do řádku | AG47: =IF(DB_stroje!C64="","",DB_stroje!C64) -> Brány nesené | AH47: =IF(DB_stroje!B64="","",DB_stroje!B64) -> Vláčení
B48: "Provozní materiál" ve sloupci "Energet. Prostředek" | AG48: =IF(DB_stroje!C65="","",DB_stroje!C65) -> Ořezávač keřů | AH48: =IF(DB_stroje!B65="","",DB_stroje!B65) -> Řez_větví
AG49: =IF(DB_stroje!C66="","",DB_stroje!C66) -> Ořezávač větví | AH49: =IF(DB_stroje!B66="","",DB_stroje!B66) -> Řez_větví
C50: =IF(C6="","",VLOOKUP(C6,DB_stroje!C6:W27,10,FALSE)) ->  | D50: =IF(C7="","",VLOOKUP(C7,DB_stroje!C30:W69,10,FALSE)) ->  | AG50: =IF(DB_stroje!C67="","",DB_stroje!C67) -> Boční vrták na traktoru | AH50: =IF(DB_stroje!B67="","",DB_stroje!B67) -> Dosazování
AG51: =IF(DB_stroje!C68="","",DB_stroje!C68) -> návěs automobilový 750 kg | AH51: =IF(DB_stroje!B68="","",DB_stroje!B68) -> přeprava nateriálu
AG52: =IF(DB_stroje!C69="","",DB_stroje!C69) -> Traktorový přívěs 5 t | AH52: =IF(DB_stroje!B69="","",DB_stroje!B69) -> Odvoz větví
AG53: =IF(DB_stroje!C70="","",DB_stroje!C70) -> shrabování trávy | AH53: =IF(DB_stroje!B70="","",DB_stroje!B70) -> shrabování trávy
AG54: =IF(DB_stroje!B68="","",DB_stroje!B68) -> přeprava nateriálu | AH54: =IF(DB_stroje!B71="","",DB_stroje!B71) -> drcení větví drtičem
AG55: =IF(DB_stroje!B69="","",DB_stroje!B69) -> Odvoz větví | AH55: =IF(DB_stroje!B72="","",DB_stroje!B72) -> nakládání trávy
AG56: =IF(DB_stroje!C73="","",DB_stroje!C73) -> setí trávy | AH56: =IF(DB_stroje!B73="","",DB_stroje!B73) -> setí trávy
AG57: =IF(DB_stroje!C74="","",DB_stroje!C74) ->  | AH57: =IF(DB_stroje!B74="","",DB_stroje!B74) -> 
AG58: =IF(DB_stroje!C75="","",DB_stroje!C75) ->  | AH58: =IF(DB_stroje!B75="","",DB_stroje!B75) -> 
AG59: =IF(DB_stroje!C76="","",DB_stroje!C76) ->  | AH59: =IF(DB_stroje!B76="","",DB_stroje!B76) -> 
AG60: =IF(DB_stroje!C77="","",DB_stroje!C77) ->  | AH60: =IF(DB_stroje!B77="","",DB_stroje!B77) -> 
AG61: =IF(DB_stroje!C78="","",DB_stroje!C78) ->  | AH61: =IF(DB_stroje!B78="","",DB_stroje!B78) -> 
AG62: =IF(DB_stroje!C79="","",DB_stroje!C79) ->  | AH62: =IF(DB_stroje!B79="","",DB_stroje!B79) -> 
AG63: =IF(DB_stroje!C80="","",DB_stroje!C80) ->  | AH63: =IF(DB_stroje!B80="","",DB_stroje!B80) -> 
AG64: =IF(DB_stroje!C81="","",DB_stroje!C81) ->  | AH64: =IF(DB_stroje!B81="","",DB_stroje!B81) -> 
AG65: =IF(DB_stroje!C82="","",DB_stroje!C82) ->  | AH65: =IF(DB_stroje!B82="","",DB_stroje!B82) -> 
AG66: =IF(DB_stroje!C83="","",DB_stroje!C83) ->  | AH66: =IF(DB_stroje!B83="","",DB_stroje!B83) -> 
AG67: =IF(DB_stroje!C84="","",DB_stroje!C84) ->  | AH67: =IF(DB_stroje!B84="","",DB_stroje!B84) -> 
AG68: =IF(DB_stroje!C85="","",DB_stroje!C85) ->  | AH68: =IF(DB_stroje!B85="","",DB_stroje!B85) -> 
AG69: =IF(DB_stroje!#REF!="","",DB_stroje!#REF!) ->  | AH69: =IF(DB_stroje!#REF!="","",DB_stroje!#REF!) -> 
AG70: =IF(DB_stroje!#REF!="","",DB_stroje!#REF!) ->  | AH70: =IF(DB_stroje!#REF!="","",DB_stroje!#REF!) -> 
B150: Vstupní parametry | C150: Energet. prostředek | D150: Stroj | E150: Jednotky
B151: Pořizovací cena | C151: =IF($C$6="","",VLOOKUP($C$6,DB_stroje!$C$6:$W$27,2,FALSE)) ->  | D151: =IF($C$7="","",VLOOKUP($C$7,DB_stroje!$C$30:$W$69,2,FALSE)) ->  | E151: [Kč]
B152: Procento vlastních zdrojů | C152: 1 | D152: 1 | E152: [%]
B153: Sazba zúročení vlastních zdrojů | C153: 0.03 | D153: 0.03 | E153: [%]
B154: Koupě s využitím bankovního úvěru | C154: NE | D154: NE | E154: [ANO/NE]
B155: Jednotná splátka úvěru | E155: [Kč/splátka]
B156: Počet splátek bankovního úvěru | E156: [1]
B157: Náklady na pořízení úvěru | E157: [Kč]
B158: Koupě pomocí leasingu | C158: NE | D158: NE | E158: [ANO/NE]
B159: Náklady na akontaci | E159: [Kč]
B160: Leasingová splátka | E160: [Kč/splátka]
B161: Počet leasingových splátek | E161: [1]
B162: Zůstatková hodnota po skončení leasingu | E162: [Kč]
B163: Roční využití | C163: =IF($C$6="","",VLOOKUP($C$6,DB_stroje!$C$6:$W$27,8,FALSE)) ->  | D163: =IF($C$7="","",VLOOKUP($C$7,DB_stroje!$C$30:$W$69,8,FALSE)) ->  | E163: [hod/rok];[ha/hod]
B164: Hodinnová výkonnost soupravy | C164: =IF($C$6="","",VLOOKUP($C$6,DB_stroje!$C$6:$W$27,9,FALSE)) ->  | D164: =IF($C$7="","",VLOOKUP($C$7,DB_stroje!$C$30:$W$69,9,FALSE)) ->  | E164: [ha/hod]
B165: Doba pro rozpis nákladů na amortizaci | C165: =IF($C$6="","",VLOOKUP($C$6,DB_stroje!$C$6:$W$27,10,FALSE)) ->  | D165: =IF($C$7="","",VLOOKUP($C$7,DB_stroje!$C$30:$W$69,10,FALSE)) ->  | E165: [rok]
B166: Silniční daň | C166: =IF($C$6="","",VLOOKUP($C$6,DB_stroje!$C$6:$W$27,15,FALSE)) ->  | D166: =IF($C$7="","",VLOOKUP($C$7,DB_stroje!$C$30:$W$69,15,FALSE)) ->  | E166: [Kč/rok]
B167: Povinné ručení | C167: =IF($C$6="","",VLOOKUP($C$6,DB_stroje!$C$6:$W$27,13,FALSE)) ->  | D167: =IF($C$7="","",VLOOKUP($C$7,DB_stroje!$C$30:$W$69,13,FALSE)) ->  | E167: [Kč/rok]
B168: Havarijní pojištění | C168: =IF($C$6="","",VLOOKUP($C$6,DB_stroje!$C$6:$W$27,14,FALSE)) ->  | D168: =IF($C$7="","",VLOOKUP($C$7,DB_stroje!$C$30:$W$69,14,FALSE)) ->  | E168: [%]
B169: Sazba za garážování | C169: =IF($C$6="","",VLOOKUP($C$6,DB_stroje!$C$6:$W$27,18,FALSE)) ->  | D169: =IF($C$7="","",VLOOKUP($C$7,DB_stroje!$C$30:$W$69,18,FALSE)) ->  | E169: [Kč/m2/rok]
B170: Garážovací plocha | C170: =IF($C$6="","",VLOOKUP($C$6,DB_stroje!$C$6:$W$27,20,FALSE)) ->  | D170: =IF($C$7="","",VLOOKUP($C$7,DB_stroje!$C$30:$W$69,20,FALSE)) ->  | E170: [m2]
B171: Roční náklady na údržbu a opravy | C171: =IF($C$6="","",VLOOKUP($C$6,DB_stroje!$C$6:$W$27,16,FALSE)) ->  | D171: =IF($C$7="","",VLOOKUP($C$7,DB_stroje!$C$30:$W$69,16,FALSE)) ->  | E171: [Kč/rok]
B172: Počet pracovníků obsluhy | C172: =IF($C$6="","",VLOOKUP($C$6,DB_stroje!$C$6:$W$27,12,FALSE)) ->  | D172: =IF($C$7="","",VLOOKUP($C$7,DB_stroje!$C$30:$W$69,12,FALSE)) ->  | E172: [-]
B173: Hodinová mzda | C173: 85 | D173: 55 | E173: [Kč/h]
B174: Zdravotní a sociální pojištění | C174: 0.34 | D174: 0.34 | E174: [%]
B175: Podíl nákladů na placenou dovolenou a svátky | C175: 0.12 | D175: 0.12 | E175: [%]
B176: Spotřeba PHM | C176: =IF($C$6="","",VLOOKUP($C$6,DB_stroje!$C$6:$W$27,11,FALSE)) ->  | D176: =IF($C$7="","",VLOOKUP($C$7,DB_stroje!$C$30:$W$69,11,FALSE)) ->  | E176: [l/ha]
B177: Průměrná cena PHM (bez DPH) | C177: 28.5 | E177: [Kč/l]
B178: Koeficient nákladů na maziva | C178: 1.08 | E178: [-]
B179: Provozní materiál | D179: =IF($C$7="","",VLOOKUP($C$7,DB_stroje!$C$30:$W$69,17,FALSE)) ->  | E179: [Kč/ha]

Sheet KT (hidden)
G3: Počet z Operace
G4: Operace | H4: Celkem
G5: Dosazování | H5: 1
G6: Dosazování_a_vysazování_rostlin | H6: 1
G7: Dovoz_vody | H7: 1
G8: drcení větví drtičem | H8: 1
G9: Hloubkové_kypření | H9: 2
G10: Hluboká_orba | H10: 1
G11: Hnojení statkovými hnojivy | H11: 1
G12: Kultivace | H12: 1
G13: Kultivace_nebo_přiorávka | H13: 1
G14: Lisování_trávy | H14: 1
G15: Lisování_trávy_do_vaků | H15: 1
G16: nakládání trávy | H16: 1
G17: Nakládání_hnojiv | H17: 1
G18: Odorávka_a_přiorávka | H18: 1
G19: Odorávka_a_přiorávka_okrajů | H19: 1
G20: Odvoz větví | H20: 1
G21: Odvoz_posečené_trávy | H21: 1
G22: Odvoz_větví | H22: 2
G23: Orba | H23: 2
G24: Pásové_hnojení_průmyslovými_hnojivy | H24: 1
G25: Pásové_ošetření_travnatých_pásů | H25: 1
G26: přeprava nateriálu | H26: 1
G27: přeprava osob | H27: 1
G28: Přeprava_materiélu | H28: 1
G29: Rosení_porostu | H29: 1
G30: Řez_větví | H30: 4
G31: Sečení beze sběru | H31: 3
G32: Sečení se sběrem | H32: 1
G33: setí trávy | H33: 1
G34: shrabování trávy | H34: 1
G35: Sušení_trávy | H35: 3
G36: Urovnání_povrchu | H36: 1
G37: Vláčení | H37: 2
G38: (prázdné) | H38: 0

Sheet DB_stroje (hidden)
B3: Databáze energetických prostředků a strojů
B5: Operace | C5: Stroj | D5: Pořizovací cena nového ekvivalentu (Cp) [Kč] | E5: Výkon (příkon) (P) [kW] | F5: Pracovní záběr (B) [mm] | G5: Měrná jednotka využití (u ep vždy hodina – h) (Mj) [h; ha; t] | H5: Šířka (š) [mm] | I5: Délka (d) [mm] | J5: Roční využití (rW) [Mj/rok] | K5: Hodinová výkonnost (pouze pro stroj) (hWs) [Mj/h] | L5: Doba pro rozpis nákladů na amortizaci (6 až 8 roků) (T) [rok] | M5: Spotřeba nafty soupravy uváděná u stroje (Q) [l/Mj] | N5: Počet pracovníků obsluhy (no) [1] | O5: Povinné ručení (rNpr) [Kč/rok] | P5: Havarijní pojištění (hp) [%] (z pořizovací ceny) | Q5: Silniční daň (rNsd) [Kč/rok] | R5: Roční náklady na údržbu a opravy (rNú) [Kč/rok] | S5: Náklady na provozní materiál (jNpm) [Kč/Mj] | T5: Sazba za garážování (sg) [Kč/m2/rok] | U5: Cena služeb soupravou pro cizí (Csl) [Kč/Mj] | V5: Plocha pro garážování [m2] | W5: Koeficient oprav
B6: Využití traktoru | C6: =Traktory!C6 -> Zetor 120 11 | D6: =Traktory!C8 -> 1100000 | E6: =Traktory!C9 -> 100 | F6: =Traktory!C10 -> x | G6: =Traktory!C11 -> h | H6: =Traktory!C12 -> 2100 | I6: =Traktory!C13 -> 4600 | J6: =Traktory!C14 -> 800 | K6: =Traktory!C15 -> 1 | L6: =Traktory!C16 -> 8 | M6: =Traktory!C17 -> x | N6: =Traktory!C18 -> 1 | O6: =Traktory!C19 -> 940 | P6: =Traktory!C20 -> 1.2 | Q6: =Traktory!C21 -> 0 | R6: =Traktory!C22 -> 56000 | S6: =Traktory!C23 -> 0 | T6: =Traktory!C24 -> 300 | V6: =IF(OR(H6=0,I6=0),0,ROUND(((H6/1000)+1)*((I6/1000)+1),1)) -> 17.4 | W6: 1
B7: Využití traktoru | C7: =Traktory!D6 -> Zetor 7340 | D7: =Traktory!D8 -> 780000 | E7: =Traktory!D$9 -> 60 | F7: =Traktory!D10 -> x | G7: =Traktory!D11 -> h | H7: =Traktory!D$12 -> 1890 | I7: =Traktory!D13 -> 4100 | J7: =Traktory!$E14 -> 1200 | K7: =Traktory!$E15 -> 1 | L7: =Traktory!$E16 -> 8 | M7: =Traktory!$E17 -> x | N7: =Traktory!$E18 -> 1 | O7: =Traktory!$E19 -> 940 | P7: =Traktory!$E20 -> 1.2 | Q7: =Traktory!$E21 -> 0 | R7: =Traktory!$E22 -> 50000 | S7: =Traktory!$E23 -> 0 | T7: =Traktory!$E24 -> 300 | V7: =IF(OR(H7=0,I7=0),0,ROUND(((H7/1000)+1)*((I7/1000)+1),1)) -> 14.7 | W7: 1
B8: Využití traktoru | C8: =Traktory!E6 -> JD 5820 | D8: =Traktory!E8 -> 1150000 | E8: =Traktory!$E9 -> 75 | F8: =Traktory!$E10 -> x | G8: =Traktory!$E11 -> h | H8: =Traktory!E12 -> 1950 | I8: =Traktory!E13 -> 4200 | J8: =Traktory!$F14 -> 600 | K8: =Traktory!$F15 -> 1 | L8: =Traktory!$F16 -> 8 | M8: =Traktory!$F17 -> x | N8: =Traktory!$F18 -> 1 | O8: =Traktory!$F19 -> 940 | P8: =Traktory!$F20 -> 1.2 | Q8: =Traktory!$F21 -> 0 | R8: =Traktory!$F22 -> 34000 | S8: =Traktory!$F23 -> 0 | T8: =Traktory!$F24 -> 300 | V8: =IF(OR(H8=0,I8=0),0,ROUND(((H8/1000)+1)*((I8/1000)+1),1)) -> 15.3 | W8: 1
B9: Využití traktoru | C9: =Traktory!F6 -> Zetor 6340 | D9: =Traktory!F8 -> 740000 | E9: =Traktory!$F9 -> 50 | F9: =Traktory!$F10 -> x | G9: =Traktory!$F11 -> h | H9: =Traktory!F12 -> 1890 | I9: =Traktory!F13 -> 4100 | J9: =Traktory!$G14 -> 600 | K9: =Traktory!$G15 -> 1 | L9: =Traktory!$G16 -> 8 | M9: =Traktory!$G17 -> x | N9: =Traktory!$G18 -> 1 | O9: =Traktory!$G19 -> 940 | P9: =Traktory!$G20 -> 1.2 | Q9: =Traktory!$G21 -> 0 | R9: =Traktory!$G22 -> 34000 | S9: =Traktory!$G23 -> 0 | T9: =Traktory!$G24 -> 300 | V9: 14.7 | W9: 1
B10: Využití traktoru | C10: =Traktory!G6 -> Zetor 6340 | D10: =Traktory!G8 -> 740000 | E10: =Traktory!$G9 -> 50 | F10: =Traktory!$G10 -> x | G10: =Traktory!$G11 -> h | H10: =Traktory!G12 -> 1890 | I10: =Traktory!G13 -> 4100 | J10: =Traktory!$H14 -> 1200 | K10: =Traktory!$H15 -> 1 | L10: =Traktory!$H16 -> 8 | M10: =Traktory!$H17 -> x | N10: =Traktory!$H18 -> 1 | O10: =Traktory!$H19 -> 940 | P10: =Traktory!$H20 -> 1.2 | Q10: =Traktory!$H21 -> 0 | R10: =Traktory!$H22 -> 60000 | S10: =Traktory!$H23 -> 0 | T10: =Traktory!$H24 -> 300 | V10: 14.7 | W10: 1
B11: Využití traktoru | C11: =Traktory!H6 -> Massey Ferguson 5420 | D11: =Traktory!H8 -> 1350000 | E11: =Traktory!$H9 -> 90 | F11: =Traktory!$H10 -> x | G11: =Traktory!$H11 -> h | H11: =Traktory!H12 -> 1900 | I11: =Traktory!H13 -> 4150 | J11: =Traktory!$I14 -> 800 | K11: =Traktory!$I15 -> 1 | L11: =Traktory!$I16 -> 8 | M11: =Traktory!$I17 -> x | N11: =Traktory!$I18 -> 1 | O11: =Traktory!$I19 -> 940 | P11: =Traktory!$I20 -> 1.2 | Q11: =Traktory!$I21 -> 0 | R11: =Traktory!$I22 -> 56000 | S11: =Traktory!$I23 -> 0 | T11: =Traktory!$I24 -> 300 | V11: 14.9 | W11: 1
B12: Využití traktoru | C12: =Traktory!I6 -> Zetor 120 45 | D12: =Traktory!$I8 -> 1100000 | E12: =Traktory!$I9 -> 100 | F12: =Traktory!$I10 -> x | G12: =Traktory!$I11 -> h | H12: =Traktory!$I12 -> 2100 | I12: =Traktory!$I13 -> 4600 | J12: =Traktory!$I14 -> 800 | K12: =Traktory!$I15 -> 1 | L12: =Traktory!$I16 -> 8 | M12: =Traktory!$I17 -> x | N12: =Traktory!$I18 -> 1 | O12: =Traktory!$I19 -> 940 | P12: =Traktory!$I20 -> 1.2 | Q12: =Traktory!$I21 -> 0 | R12: =Traktory!$I22 -> 56000 | S12: =Traktory!$I23 -> 0 | T12: =Traktory!$I24 -> 300 | V12: =IF(OR(H12=0,I12=0),0,ROUND(((H12/1000)+1)*((I12/1000)+1),1)) -> 17.4 | W12: 1
B13: Využití traktoru | C13: =Traktory!J6 -> Zetor 77 45 | D13: =Traktory!$J8 -> 780000 | E13: =Traktory!$J9 -> 60 | F13: =Traktory!$J10 -> x | G13: =Traktory!$J11 -> h | H13: =Traktory!$J12 -> 1890 | I13: =Traktory!$J13 -> 4100 | J13: =Traktory!$J14 -> 800 | K13: =Traktory!$J15 -> 1 | L13: =Traktory!$J16 -> 8 | M13: =Traktory!$J17 -> x | N13: =Traktory!$J18 -> 1 | O13: =Traktory!$J19 -> 940 | P13: =Traktory!$J20 -> 1.2 | Q13: =Traktory!$J21 -> 0 | R13: =Traktory!$J22 -> 36000 | S13: =Traktory!$J23 -> 0 | T13: =Traktory!$J24 -> 300 | V13: 14.7 | W13: 1
B14: Využití traktoru | C14: =Traktory!K6 -> JD6250 | D14: =Traktory!$K8 -> 1150000 | E14: =Traktory!$K9 -> 75 | F14: =Traktory!$K10 -> x | G14: =Traktory!$K11 -> h | H14: =Traktory!$K12 -> 1950 | I14: =Traktory!$K13 -> 4200 | J14: =Traktory!$K14 -> 1200 | K14: =Traktory!$K15 -> 1 | L14: =Traktory!$K16 -> 8 | M14: =Traktory!$K17 -> x | N14: =Traktory!$K18 -> 1 | O14: =Traktory!$K19 -> 940 | P14: =Traktory!$K20 -> 1.2 | Q14: =Traktory!$K21 -> 0 | R14: =Traktory!$K22 -> 50000 | S14: =Traktory!$K23 -> 0 | T14: =Traktory!$K24 -> 300 | V14: 15.3 | W14: 1
B15: Využití traktoru | C15: =Traktory!L6 -> Zetor 6345 | D15: =Traktory!$L8 -> 740000 | E15: =Traktory!$L9 -> 50 | F15: =Traktory!$L10 -> x | G15: =Traktory!$L11 -> h | H15: =Traktory!$L12 -> 1890 | I15: =Traktory!$L13 -> 4100 | J15: =Traktory!$L14 -> 600 | K15: =Traktory!$L15 -> 1 | L15: =Traktory!$L16 -> 8 | M15: =Traktory!$L17 -> x | N15: =Traktory!$L18 -> 1 | O15: =Traktory!$L19 -> 940 | P15: =Traktory!$L20 -> 1.2 | Q15: =Traktory!$L21 -> 0 | R15: =Traktory!$L22 -> 34000 | S15: =Traktory!$L23 -> 0 | T15: =Traktory!$L24 -> 300 | V15: 14.7 | W15: 1
B16: Využití traktoru | C16: =Traktory!M6 -> Zetor 6340 | D16: =Traktory!$M8 -> 740000 | E16: =Traktory!$M9 -> 50 | F16: =Traktory!$M10 -> x | G16: =Traktory!$M11 -> h | H16: =Traktory!$M12 -> 1890 | I16: =Traktory!$M13 -> 4100 | J16: =Traktory!$M14 -> 600 | K16: =Traktory!$M155 -> 0 | L16: =Traktory!$M16 -> 8 | M16: =Traktory!$M17 -> x | N16: =Traktory!$M18 -> 1 | O16: =Traktory!$M19 -> 940 | P16: =Traktory!$M20 -> 1.2 | Q16: =Traktory!$M21 -> 0 | R16: =Traktory!$M22 -> 34000 | S16: =Traktory!$M23 -> 0 | T16: =Traktory!$M24 -> 300 | V16: 14.7 | W16: 1
B17: Využití traktoru | C17: =Traktory!N6 -> Massey Ferguson5520 | D17: =Traktory!$N8 -> 1350000 | E17: =Traktory!$N9 -> 90 | F17: =Traktory!$N10 -> x | G17: =Traktory!$N11 -> h | H17: =Traktory!$N12 -> 1900 | I17: =Traktory!$N13 -> 4150 | J17: =Traktory!$N14 -> 1200 | K17: =Traktory!$N15 -> 1 | L17: =Traktory!$N16 -> 8 | M17: =Traktory!$N17 -> x | N17: =Traktory!$N18 -> 1 | O17: =Traktory!$N19 -> 940 | P17: =Traktory!$N20 -> 1.2 | Q17: =Traktory!$N21 -> 0 | R17: =Traktory!$N22 -> 60000 | S17: =Traktory!$N23 -> 0 | T17: =Traktory!$N24 -> 300 | V17: 14.9 | W17: 1
V18: 0 | W18: 1
V19: 0 | W19: 1
V20: 0 | W20: 1
V21: 0 | W21: 1
V22: 0 | W22: 1
V23: 0 | W23: 1
V24: 0 | W24: 1
V25: 0 | W25: 1
V26: 0 | W26: 1
V27: 0 | W27: 1
B29: Operace | C29: Stroj | D29: 2 | E29: 3 | F29: 4 | G29: 5 | H29: 6 | I29: 7 | J29: 8 | K29: 9 | L29: 10 | M29: 11 | N29: 12 | O29: 13 | P29: 14 | Q29: 15 | R29: 16 | S29: 17 | T29: 18 | U29: 19 | V29: 20 | W29: 21
B30: Sečení beze sběru | C30: =Sklizen!D6 -> Mulčovač nožový | D30: =Sklizen!D8 -> 2500000 | E30: =Sklizen!D9 -> 30 | F30: =Sklizen!D10 -> x | G30: =Sklizen!D11 -> ha | H30: =Sklizen!D12 -> 12000 | I30: =Sklizen!D13 -> 12000 | J30: =Sklizen!D14 -> 20 | K30: =Sklizen!D15 -> 0.1 | L30: =Sklizen!D16 -> 8 | M30: =Sklizen!D17 -> 0 | N30: =Sklizen!D18 -> 3 | O30: =Sklizen!D19 -> 0 | P30: =Sklizen!D20 -> 0 | Q30: =Sklizen!D21 -> 0 | R30: =Sklizen!D22 -> 100000 | S30: =Sklizen!D23 -> 5000 | T30: =Sklizen!D24 -> 300 | V30: =IF(OR(H30=0,I30=0),0,ROUND(((H30/1000)+1)*((I30/1000)+1),1)) -> 169 | W30: 1
B31: Sečení beze sběru | C31: =Sklizen!E6 -> Mulčovač kladívkový | D31: =Sklizen!E8 -> 3500000 | E31: =Sklizen!E9 -> 55 | F31: =Sklizen!E10 -> x | G31: =Sklizen!E11 -> ha | H31: =Sklizen!E12 -> 1200 | I31: =Sklizen!E13 -> 1500 | J31: =Sklizen!E14 -> 40 | K31: =Sklizen!E15 -> 1 | L31: =Sklizen!E16 -> 5 | M31: =Sklizen!E17 -> 3 | N31: =Sklizen!E18 -> 1 | O31: =Sklizen!E19 -> 0 | P31: =Sklizen!E20 -> 0 | Q31: =Sklizen!E21 -> 0 | R31: =Sklizen!E22 -> 2000 | S31: =Sklizen!E23 -> 0 | T31: =Sklizen!E24 -> 150 | V31: 5.5 | W31: 1
B32: Sečení beze sběru | C32: =Sklizen!F6 -> JD 2023 | D32: =Sklizen!F8 -> 150000 | E32: =Sklizen!F9 -> 15 | F32: =Sklizen!F10 -> x | G32: =Sklizen!F11 -> h | H32: =Sklizen!F12 -> 1200 | I32: =Sklizen!F13 -> 12000 | J32: =Sklizen!F14 -> 20 | K32: =Sklizen!F15 -> 0.08 | L32: =Sklizen!F16 -> 10 | M32: =Sklizen!F17 -> 0 | N32: =Sklizen!F18 -> 8 | O32: =Sklizen!F19 -> 0 | P32: =Sklizen!F20 -> 0 | Q32: =Sklizen!F21 -> 0 | R32: =Sklizen!F22 -> 120000 | S32: =Sklizen!F23 -> 6000 | T32: =Sklizen!F24 -> 300 | V32: 28.6 | W32: 1
B33: Dosazování_a_vysazování_rostlin | C33: =Zpracovani_pudy!L6 -> Boční vrták na traktoru | D33: =Zpracovani_pudy!L8 -> 40000 | E33: =Zpracovani_pudy!L9 -> 50 | F33: =Zpracovani_pudy!L10 -> x | G33: =Zpracovani_pudy!L11 -> ha | H33: =Zpracovani_pudy!L12 -> 1600 | I33: =Zpracovani_pudy!L13 -> 1000 | J33: =Zpracovani_pudy!L14 -> 15 | K33: =Zpracovani_pudy!L15 -> 0.08 | L33: =Zpracovani_pudy!L16 -> 8 | M33: =Zpracovani_pudy!L17 -> 40 | N33: =Zpracovani_pudy!L18 -> 0 | O33: =Zpracovani_pudy!L19 -> 0 | P33: =Zpracovani_pudy!L20 -> 0 | Q33: =Zpracovani_pudy!L21 -> 0 | R33: =Zpracovani_pudy!L22 -> 4000 | S33: =Zpracovani_pudy!L23 -> 0 | T33: =Zpracovani_pudy!L24 -> 150 | V33: =IF(OR(H33=0,I33=0),0,ROUND(((H33/1000)+1)*((I33/1000)+1),1)) -> 5.2 | W33: 1
B34: Dovoz_vody | C34: =Nakladani!H6 -> Cisterna | D34: =Nakladani!H8 -> 280000 | E34: =Nakladani!H9 -> 70 | F34: =Nakladani!H10 -> x | G34: =Nakladani!H11 -> ha | H34: =Nakladani!H12 -> 2100 | I34: =Nakladani!H13 -> 5500 | J34: =Nakladani!H14 -> 250 | K34: =Nakladani!H15 -> 1 | L34: =Nakladani!H16 -> 8 | M34: =Nakladani!H17 -> 6 | N34: =Nakladani!H18 -> 0 | O34: =Nakladani!H19 -> 300 | P34: =Nakladani!H20 -> 0 | Q34: =Nakladani!H21 -> 0 | R34: =Nakladani!H22 -> 2000 | S34: =Nakladani!H23 -> Voda | T34: =Nakladani!H24 -> 150 | V34: 20.2 | W34: 1
B35: Hloubkové_kypření | C35: =Zpracovani_pudy!D6 -> Hl. kypřič | D35: =Zpracovani_pudy!D8 -> 64600 | E35: =Zpracovani_pudy!D9 -> 85 | F35: =Zpracovani_pudy!D10 -> 1500 | G35: =Zpracovani_pudy!D11 -> ha | H35: =Zpracovani_pudy!D12 -> 1585 | I35: =Zpracovani_pudy!D13 -> 1590 | J35: =Zpracovani_pudy!D14 -> 100 | K35: =Zpracovani_pudy!D15 -> 0.8 | L35: =Zpracovani_pudy!D16 -> 8 | M35: =Zpracovani_pudy!D17 -> 12.8 | N35: =Zpracovani_pudy!D18 -> 0 | O35: =Zpracovani_pudy!D19 -> 0 | P35: =Zpracovani_pudy!D20 -> 0 | Q35: =Zpracovani_pudy!D21 -> 0 | R35: =Zpracovani_pudy!D22 -> 2800 | S35: =Zpracovani_pudy!D23 -> 0 | T35: =Zpracovani_pudy!D24 -> 150 | V35: 6.7 | W35: 1
B36: Hluboká_orba | C36: =Zpracovani_pudy!F6 -> smyky | D36: =Zpracovani_pudy!F8 -> 100000 | E36: =Zpracovani_pudy!F9 -> 70 | F36: =Zpracovani_pudy!F10 -> 5000 | G36: =Zpracovani_pudy!F11 -> ha | H36: =Zpracovani_pudy!F12 -> 3000 | I36: =Zpracovani_pudy!F13 -> 1600 | J36: =Zpracovani_pudy!F14 -> 200 | K36: =Zpracovani_pudy!F15 -> 0.8 | L36: =Zpracovani_pudy!F16 -> 8 | M36: =Zpracovani_pudy!F17 -> 5 | N36: =Zpracovani_pudy!F18 -> 1 | O36: =Zpracovani_pudy!F19 -> 0 | P36: =Zpracovani_pudy!F20 -> 0 | Q36: =Zpracovani_pudy!F21 -> 0 | R36: =Zpracovani_pudy!F22 -> 12000 | S36: =Zpracovani_pudy!F23 -> 0 | T36: =Zpracovani_pudy!F24 -> 150 | V36: 10.4 | W36: 1
B37: Hnojení statkovými hnojivy | C37: =Nakladani!D6 -> RUR-5 | D37: =Nakladani!D8 -> 220000 | E37: =Nakladani!D9 -> 65 | F37: =Nakladani!D10 -> 9000 | G37: =Nakladani!D11 -> ha | H37: =Nakladani!D12 -> 2500 | I37: =Nakladani!D13 -> 6600 | J37: =Nakladani!D14 -> 40 | K37: =Nakladani!D15 -> 0.8 | L37: =Nakladani!D16 -> 6 | M37: =Nakladani!D17 -> 15 | N37: =Nakladani!D18 -> 0 | O37: =Nakladani!D19 -> 0 | P37: =Nakladani!D20 -> 0 | Q37: =Nakladani!D21 -> 0 | R37: =Nakladani!D22 -> 11300 | S37: =Nakladani!D23 -> 0 | T37: =Nakladani!D24 -> 150 | V37: 26.6 | W37: 1
B38: Kultivace_nebo_přiorávka | C38: =Zpracovani_pudy!G6 -> Plečka | D38: =Zpracovani_pudy!G8 -> 120000 | E38: =Zpracovani_pudy!G9 -> 70 | F38: =Zpracovani_pudy!G10 -> 3000 | G38: =Zpracovani_pudy!G11 -> ha | H38: =Zpracovani_pudy!G12 -> 2100 | I38: =Zpracovani_pudy!G13 -> 1600 | J38: =Zpracovani_pudy!G14 -> 120 | K38: =Zpracovani_pudy!G15 -> 0.8 | L38: =Zpracovani_pudy!G16 -> 8 | M38: =Zpracovani_pudy!G17 -> 7 | N38: =Zpracovani_pudy!G18 -> 1 | O38: =Zpracovani_pudy!G19 -> 0 | P38: =Zpracovani_pudy!G20 -> 0 | Q38: =Zpracovani_pudy!G21 -> 0 | R38: =Zpracovani_pudy!G22 -> 12000 | S38: =Zpracovani_pudy!G23 -> 0 | T38: =Zpracovani_pudy!G24 -> 150 | V38: 8.1 | W38: 1
B39: Lisování_trávy | C39: =Sklizen!J6 -> Hranolový lis | D39: =Sklizen!J8 -> 200000 | E39: =Sklizen!J9 -> 4 | F39: =Sklizen!J10 -> x | G39: =Sklizen!J11 -> ha | H39: =Sklizen!J12 -> 6000 | I39: =Sklizen!J13 -> 6000 | J39: =Sklizen!J14 -> 40 | K39: =Sklizen!J15 -> 11 | L39: =Sklizen!J16 -> 10 | M39: =Sklizen!J17 -> 0 | N39: =Sklizen!J18 -> 2 | O39: =Sklizen!J19 -> 0 | P39: =Sklizen!J20 -> 0 | Q39: =Sklizen!J21 -> 0 | R39: =Sklizen!J22 -> 6000 | S39: =Sklizen!J23 -> 800 | T39: =Sklizen!J24 -> 300 | V39: 49 | W39: 1
B40: Lisování_trávy_do_vaků | C40: =Sklizen!L6 -> Lis do vaku | D40: =Sklizen!K8 -> 40000 | E40: =Sklizen!K9 -> 90 | F40: =Sklizen!K10 -> x | G40: =Sklizen!K11 -> ha | H40: =Sklizen!K12 -> 6000 | I40: =Sklizen!K13 -> 6000 | J40: =Sklizen!K14 -> 40 | K40: =Sklizen!K15 -> 12 | L40: =Sklizen!K16 -> 10 | M40: =Sklizen!K17 -> 0 | N40: =Sklizen!K18 -> 2 | O40: =Sklizen!K19 -> 0 | P40: =Sklizen!K20 -> 0 | Q40: =Sklizen!K21 -> 0 | R40: =Sklizen!K22 -> 3000 | S40: =Sklizen!K23 -> 800 | T40: =Sklizen!K24 -> 300 | V40: 49 | W40: 1
B41: Nakládání_hnojiv | C41: =Nakladani!C6 -> Nakladač Merlo | D41: =Nakladani!C8 -> 1800000 | E41: =Nakladani!C9 -> 60 | F41: =Nakladani!C10 -> x | G41: =Nakladani!C11 -> ha | H41: =Nakladani!C12 -> 2200 | I41: =Nakladani!C13 -> 5200 | J41: =Nakladani!C14 -> 800 | K41: =Nakladani!C15 -> 1.6 | L41: =Nakladani!C16 -> 8 | M41: =Nakladani!C17 -> 8 | N41: =Nakladani!C18 -> 1 | O41: =Nakladani!C19 -> 940 | P41: =Nakladani!C20 -> 0 | Q41: =Nakladani!C2 -> 0 | R41: =Nakladani!C22 -> 28000 | S41: =Nakladani!C23 -> 0 | T41: =Nakladani!C24 -> 300 | V41: 19.8 | W41: 1
B42: Odorávka_a_přiorávka_okrajů | C42: =Zpracovani_pudy!E6 -> Talířový pluh | D42: =Zpracovani_pudy!E8 -> 80000 | E42: =Zpracovani_pudy!E9 -> 70 | F42: =Zpracovani_pudy!E10 -> 2200 | G42: =Zpracovani_pudy!E11 -> ha | H42: =Zpracovani_pudy!E12 -> 2200 | I42: =Zpracovani_pudy!E13 -> 1400 | J42: =Zpracovani_pudy!E14 -> 80 | K42: =Zpracovani_pudy!E15 -> 0.6 | L42: =Zpracovani_pudy!E16 -> 8 | M42: =Zpracovani_pudy!E17 -> 9 | N42: =Zpracovani_pudy!E18 -> 0 | O42: =Zpracovani_pudy!E19 -> 0 | P42: =Zpracovani_pudy!E20 -> 0 | Q42: =Zpracovani_pudy!E21 -> 0 | R42: =Zpracovani_pudy!E22 -> 2500 | S42: =Zpracovani_pudy!E23 -> 0 | T42: =Zpracovani_pudy!E24 -> 150 | V42: 7.7 | W42: 1
B43: Odvoz_posečené_trávy | C43: =Doprava!D6 -> návěs traktorový 2,5 t | D43: =Doprava!D8 -> 60000 | E43: =Doprava!D9 -> 50 | F43: =Doprava!D10 -> x | G43: =Doprava!D11 -> h | H43: =Doprava!D12 -> 2100 | I43: =Doprava!D13 -> 6000 | J43: =Doprava!D14 -> 50 | K43: =Doprava!D15 -> 4 | L43: =Doprava!D16 -> 8 | M43: =Doprava!D17 -> 10 | N43: =Doprava!D18 -> 0 | O43: =Doprava!D19 -> 300 | P43: =Doprava!D20 -> 0 | Q43: =Doprava!D21 -> 0 | R43: =Doprava!D22 -> 2000 | S43: =Doprava!D23 -> 300 | T43: =Doprava!D24 -> 150 | V43: 21.7 | W43: 1
B44: Odvoz_větví | C44: =Doprava!C6 -> Traktorový přívěs 7 t | D44: =Doprava!C8 -> 300000 | E44: =Doprava!C9 -> 50 | F44: =Doprava!C10 -> x | G44: =Doprava!C11 -> h | H44: =Doprava!C12 -> 2000 | I44: =Doprava!C13 -> 5000 | J44: =Doprava!C14 -> 50 | K44: =Doprava!C15 -> 0.3 | L44: =Doprava!C16 -> 8 | M44: =Doprava!C17 -> 18 | N44: =Doprava!C18 -> 2 | O44: =Doprava!C19 -> 300 | P44: =Doprava!C20 -> 0 | Q44: =Doprava!C21 -> 0 | R44: =Doprava!C22 -> 2000 | S44: =Doprava!C23 -> 100 | T44: =Doprava!C24 -> 150 | V44: 18 | W44: 1
B45: Orba | C45: =Zpracovani_pudy!C6 -> Pluh PH 4 007 | D45: =Zpracovani_pudy!C8 -> 47000 | E45: =Zpracovani_pudy!C9 -> 70 | F45: =Zpracovani_pudy!C10 -> 1500 | G45: =Zpracovani_pudy!C11 -> ha | H45: =Zpracovani_pudy!C12 -> 2000 | I45: =Zpracovani_pudy!C13 -> 1590 | J45: =Zpracovani_pudy!C14 -> 50 | K45: =Zpracovani_pudy!C15 -> 1 | L45: =Zpracovani_pudy!C16 -> 8 | M45: =Zpracovani_pudy!C17 -> 9.1 | N45: =Zpracovani_pudy!C18 -> 0 | O45: =Zpracovani_pudy!C19 -> 0 | P45: =Zpracovani_pudy!C20 -> 0 | Q45: =Zpracovani_pudy!C21 -> 0 | R45: =Zpracovani_pudy!C22 -> 4000 | S45: =Zpracovani_pudy!C23 -> 0 | T45: =Zpracovani_pudy!C24 -> 150 | V45: 7.8 | W45: 1
B46: Pásové_hnojení_průmyslovými_hnojivy | C46: =Nakladani!E6 -> Nesené rozmetadlo TMH Amazone | D46: =Nakladani!E8 -> 60000 | E46: =Nakladani!E9 -> 50 | F46: =Nakladani!E10 -> 6000 | G46: =Nakladani!E11 -> ha | H46: =Nakladani!E12 -> 1800 | I46: =Nakladani!E13 -> 1300 | J46: =Nakladani!E14 -> 100 | K46: =Nakladani!E15 -> 0.8 | L46: =Nakladani!E16 -> 8 | M46: =Nakladani!E17 -> 6 | N46: =Nakladani!E18 -> 0 | O46: =Nakladani!E19 -> 0 | P46: =Nakladani!E20 -> 0 | Q46: =Nakladani!E21 -> 0 | R46: =Nakladani!E22 -> 4000 | S46: =Nakladani!E23 -> Podle spotřeby hnojiva | T46: =Nakladani!E24 -> 150 | V46: 6.4 | W46: 1
B47: Pásové_ošetření_travnatých_pásů | C47: =Nakladani!G6 -> Posrřikovač s rámem | D47: =Nakladani!G8 -> 200000 | E47: =Nakladani!G9 -> 50 | F47: =Nakladani!G10 -> 4500 | G47: =Nakladani!G11 -> ha | H47: =Nakladani!G12 -> 1800 | I47: =Nakladani!G13 -> 3500 | J47: =Nakladani!G14 -> 60 | K47: =Nakladani!G15 -> 1 | L47: =Nakladani!G16 -> 8 | M47: =Nakladani!G17 -> 7 | N47: =Nakladani!G18 -> 0 | O47: =Nakladani!G19 -> 0 | P47: =Nakladani!G20 -> 0 | Q47: =Nakladani!G21 -> 0 | R47: =Nakladani!G22 -> 4000 | S47: =Nakladani!G23 -> Chem. prostředky | T47: =Nakladani!G24 -> 150 | V47: 12.6 | W47: 1
B48: Přeprava_materiélu | C48: =Doprava!E6 -> návěs automobilový 750 kg | D48: =Doprava!E8 -> 120000 | E48: =Doprava!E9 -> 50 | F48: =Doprava!E10 -> x | G48: =Doprava!E11 -> h | H48: =Doprava!E12 -> 2000 | I48: =Doprava!E13 -> 5500 | J48: =Doprava!E14 -> 50 | K48: =Doprava!E15 -> 0.1 | L48: =Doprava!E16 -> 8 | M48: =Doprava!E17 -> 5 | N48: =Doprava!E18 -> 0 | O48: =Doprava!E19 -> 300 | P48: =Doprava!E20 -> 0 | Q48: =Doprava!E21 -> 0 | R48: =Doprava!E22 -> 3000 | S48: =Doprava!E23 -> 0 | T48: =Doprava!E24 -> 150 | V48: 19.5 | W48: 1
B49: Odvoz_větví | C49: =Doprava!F6 -> Traktorový přívěs 5 t | D49: =Doprava!F8 -> 200000 | E49: =Doprava!F9 -> 50 | F49: =Doprava!F10 -> x | G49: =Doprava!F11 -> h | H49: =Doprava!F12 -> 2000 | I49: =Doprava!F13 -> 5000 | J49: =Doprava!F14 -> 50 | K49: =Doprava!F15 -> 0.3 | L49: =Doprava!F16 -> 8 | M49: =Doprava!F17 -> 18 | N49: =Doprava!F18 -> 2 | O49: =Doprava!F19 -> 300 | P49: =Doprava!F20 -> 0 | Q49: =Doprava!F21 -> 0 | R49: =Doprava!F22 -> 2000 | S49: =Doprava!F23 -> 100 | T49: =Doprava!F24 -> 150 | V49: 18 | W49: 1
B50: Rosení_porostu | C50: =Nakladani!F6 -> Rosič Laser 2000 | D50: =Nakladani!F8 -> 217000 | E50: =Nakladani!F9 -> 50 | F50: =Nakladani!F10 -> 6000 | G50: =Nakladani!F11 -> ha | H50: =Nakladani!F12 -> 1600 | I50: =Nakladani!F13 -> 3300 | J50: =Nakladani!F14 -> 240 | K50: =Nakladani!F15 -> 0.8 | L50: =Nakladani!F16 -> 6 | M50: =Nakladani!F17 -> 9 | N50: =Nakladani!F18 -> 0 | O50: =Nakladani!F19 -> 0 | P50: =Nakladani!F20 -> 0 | Q50: =Nakladani!F21 -> 0 | R50: =Nakladani!F22 -> 10000 | S50: =Nakladani!F23 -> 0 | T50: =Nakladani!F24 -> 150 | V50: 11.2 | W50: 1
B51: Řez_větví | C51: =Zpracovani_pudy!J6 -> Ořezávač keřů | D51: =Zpracovani_pudy!J8 -> 80000 | E51: =Zpracovani_pudy!J9 -> 70 | F51: =Zpracovani_pudy!J10 -> 3000 | G51: =Zpracovani_pudy!J11 -> ha | H51: =Zpracovani_pudy!J12 -> 1900 | I51: =Zpracovani_pudy!J13 -> 1400 | J51: =Zpracovani_pudy!J14 -> 40 | K51: =Zpracovani_pudy!J15 -> 0.3 | L51: =Zpracovani_pudy!J16 -> 8 | M51: =Zpracovani_pudy!J17 -> 12 | N51: =Zpracovani_pudy!J18 -> 0 | O51: =Zpracovani_pudy!J19 -> 0 | P51: =Zpracovani_pudy!J20 -> 0 | Q51: =Zpracovani_pudy!J21 -> 0 | R51: =Zpracovani_pudy!J22 -> 5000 | S51: =Zpracovani_pudy!J23 -> 500 | T51: =Zpracovani_pudy!J24 -> 150 | V51: 7 | W51: 1
B52: Řez_větví | C52: =Zpracovani_pudy!K6 -> Ořezávač větví | D52: =Zpracovani_pudy!K8 -> 80000 | E52: =Zpracovani_pudy!K9 -> 70 | F52: =Zpracovani_pudy!K10 -> 3000 | G52: =Zpracovani_pudy!K11 -> ha | H52: =Zpracovani_pudy!K12 -> 1890 | I52: =Zpracovani_pudy!K13 -> 1500 | J52: =Zpracovani_pudy!K14 -> 40 | K52: =Zpracovani_pudy!K15 -> 0.3 | L52: =Zpracovani_pudy!K16 -> 8 | M52: =Zpracovani_pudy!K17 -> 12 | N52: =Zpracovani_pudy!K18 -> 0 | O52: =Zpracovani_pudy!K19 -> 0 | P52: =Zpracovani_pudy!K20 -> 0 | Q52: =Zpracovani_pudy!K21 -> 0 | R52: =Zpracovani_pudy!K22 -> 5000 | S52: =Zpracovani_pudy!K23 -> 500 | T52: =Zpracovani_pudy!K24 -> 150 | V52: 7.2 | W52: 1
B53: Sečení se sběrem | C53: =Sklizen!C6 -> Mulčovač JD se zásobníkem | D53: =Sklizen!C8 -> 200000 | E53: =Sklizen!C9 -> 65 | F53: =Sklizen!C10 -> x | G53: =Sklizen!C11 -> ha | H53: =Sklizen!C12 -> 1350 | I53: =Sklizen!C13 -> 5500 | J53: =Sklizen!C14 -> 20 | K53: =Sklizen!C15 -> 0.08 | L53: =Sklizen!C16 -> 8 | M53: =Sklizen!C17 -> 82 | N53: =Sklizen!C18 -> 0 | O53: =Sklizen!C19 -> 0 | P53: =Sklizen!C20 -> 0 | Q53: =Sklizen!C21 -> 0 | R53: =Sklizen!C22 -> 6800 | S53: =Sklizen!C23 -> 0 | T53: 15024 | V53: 15.3 | W53: 1
B54: Sušení_trávy | C54: =Sklizen!G6 -> Obraceč shrnovač rotorový | D54: =Sklizen!G8 -> 350000 | E54: =Sklizen!G9 -> 50 | F54: =Sklizen!G10 -> x | G54: =Sklizen!G11 -> ha | H54: =Sklizen!G12 -> 1500 | I54: =Sklizen!G13 -> 2400 | J54: =Sklizen!G14 -> 100 | K54: =Sklizen!G15 -> 8 | L54: =Sklizen!G16 -> 10 | M54: =Sklizen!G17 -> 0 | N54: =Sklizen!G18 -> 2 | O54: =Sklizen!G19 -> 0 | P54: =Sklizen!G20 -> 0 | Q54: =Sklizen!G21 -> 0 | R54: =Sklizen!G22 -> 4000 | S54: =Sklizen!G23 -> 600 | T54: =Sklizen!G24 -> 300 | V54: 8.5 | W54: 1
B55: Sušení_trávy | C55: =Sklizen!H6 -> Obraceč shrnovač dopravníkový | D55: =Sklizen!H8 -> 4000000 | E55: =Sklizen!H9 -> 65 | F55: =Sklizen!H10 -> x | G55: =Sklizen!H11 -> ha | H55: =Sklizen!H12 -> 15000 | I55: =Sklizen!H13 -> 27000 | J55: =Sklizen!H14 -> 40 | K55: =Sklizen!H15 -> 9 | L55: =Sklizen!H16 -> 10 | M55: =Sklizen!H17 -> 0 | N55: =Sklizen!H18 -> 2 | O55: =Sklizen!H19 -> 0 | P55: =Sklizen!H20 -> 0 | Q55: =Sklizen!H21 -> 0 | R55: =Sklizen!H22 -> 4500 | S55: =Sklizen!H23 -> 1400 | T55: =Sklizen!H24 -> 300 | V55: 448 | W55: 1
B56: Sušení_trávy | C56: =Sklizen!I6 -> Mulčovač JD se zásobníkem | D56: =Sklizen!I8 -> 2500000 | E56: =Sklizen!I9 -> 35 | F56: =Sklizen!I10 -> x | G56: =Sklizen!I11 -> ha | H56: =Sklizen!I12 -> 12000 | I56: =Sklizen!I13 -> 12000 | J56: =Sklizen!I14 -> 25 | K56: =Sklizen!I15 -> 10 | L56: =Sklizen!I16 -> 10 | M56: =Sklizen!I17 -> 0 | N56: =Sklizen!I18 -> 1 | O56: =Sklizen!I19 -> 0 | P56: =Sklizen!I20 -> 0 | Q56: =Sklizen!I21 -> 0 | R56: =Sklizen!I22 -> 25000 | S56: =Sklizen!I23 -> 2400 | T56: =Sklizen!I24 -> 300 | V56: 169 | W56: 1
B57: přeprava osob | C57: =Doprava!G6 -> Přepravavník osob | D57: =Doprava!G8 -> 129000 | E57: =Doprava!G9 -> 45 | F57: =Doprava!G10 -> x | G57: =Doprava!G11 -> h | H57: =Doprava!G12 -> 2950 | I57: =Doprava!G13 -> 3500 | J57: =Doprava!G14 -> 40 | K57: =Doprava!G15 -> 0.3 | L57: =Doprava!G16 -> 8 | M57: =Doprava!G17 -> 10 | N57: =Doprava!G18 -> 3 | O57: =Doprava!G19 -> 300 | P57: =Doprava!G20 -> 0 | Q57: =Doprava!G21 -> 0 | R57: =Doprava!G22 -> 4500 | S57: =Doprava!G23 -> 0 | T57: =Doprava!G24 -> 150 | V57: 17.8 | W57: 1
B58: Orba | C58: =Zpracovani_pudy!C6 -> Pluh PH 4 007 | D58: =Zpracovani_pudy!C8 -> 47000 | E58: =Zpracovani_pudy!C9 -> 70 | F58: =Zpracovani_pudy!C10 -> 1500 | G58: =Zpracovani_pudy!C11 -> ha | H58: =Zpracovani_pudy!C12 -> 2000 | I58: =Zpracovani_pudy!C13 -> 1590 | J58: =Zpracovani_pudy!C14 -> 50 | K58: =Zpracovani_pudy!C15 -> 1 | L58: =Zpracovani_pudy!C16 -> 8 | M58: =Zpracovani_pudy!C17 -> 9.1 | N58: =Zpracovani_pudy!C18 -> 0 | O58: =Zpracovani_pudy!C19 -> 0 | P58: =Zpracovani_pudy!C20 -> 0 | Q58: =Zpracovani_pudy!C21 -> 0 | R58: =Zpracovani_pudy!C22 -> 4000 | S58: =Zpracovani_pudy!C23 -> 0 | T58: =Zpracovani_pudy!C24 -> 150 | V58: =IF(OR(H58=0,I58=0),0,ROUND(((H58/1000)+1)*((I58/1000)+1),1)) -> 7.8 | W58: 1
B59: Hloubkové_kypření | C59: =Zpracovani_pudy!D6 -> Hl. kypřič | D59: =Zpracovani_pudy!D8 -> 64600 | E59: =Zpracovani_pudy!D9 -> 85 | F59: =Zpracovani_pudy!D10 -> 1500 | G59: =Zpracovani_pudy!$D11 -> ha | H59: =Zpracovani_pudy!$D12 -> 1585 | I59: =Zpracovani_pudy!$D13 -> 1590 | J59: =Zpracovani_pudy!$D14 -> 100 | K59: =Zpracovani_pudy!$D15 -> 0.8 | L59: =Zpracovani_pudy!$D16 -> 8 | M59: =Zpracovani_pudy!$D17 -> 12.8 | N59: =Zpracovani_pudy!$D18 -> 0 | O59: =Zpracovani_pudy!$D19 -> 0 | P59: =Zpracovani_pudy!$D20 -> 0 | Q59: =Zpracovani_pudy!$D21 -> 0 | R59: =Zpracovani_pudy!$D22 -> 2800 | S59: =Zpracovani_pudy!$D23 -> 0 | T59: =Zpracovani_pudy!$D24 -> 150 | V59: 6.7 | W59: 1
B60: Odorávka_a_přiorávka | C60: =Zpracovani_pudy!E6 -> Talířový pluh | D60: =Zpracovani_pudy!$E8 -> 80000 | E60: =Zpracovani_pudy!$E9 -> 70 | F60: =Zpracovani_pudy!$E9 -> 70 | G60: =Zpracovani_pudy!$E9 -> 70 | H60: =Zpracovani_pudy!$E12 -> 2200 | I60: =Zpracovani_pudy!$E13 -> 1400 | J60: =Zpracovani_pudy!$E14 -> 80 | K60: =Zpracovani_pudy!$E15 -> 0.6 | L60: =Zpracovani_pudy!$E16 -> 8 | M60: =Zpracovani_pudy!$E17 -> 9 | N60: =Zpracovani_pudy!$E18 -> 0 | O60: =Zpracovani_pudy!$E19 -> 0 | P60: =Zpracovani_pudy!$E20 -> 0 | Q60: =Zpracovani_pudy!$E21 -> 0 | R60: =Zpracovani_pudy!$E22 -> 2500 | S60: =Zpracovani_pudy!$E23 -> 0 | T60: =Zpracovani_pudy!$E24 -> 150 | V60: 7.7 | W60: 1
B61: Urovnání_povrchu | C61: =Zpracovani_pudy!F6 -> smyky | D61: =Zpracovani_pudy!$F8 -> 100000 | E61: =Zpracovani_pudy!$F9 -> 70 | F61: =Zpracovani_pudy!$F10 -> 5000 | G61: =Zpracovani_pudy!$F11 -> ha | H61: =Zpracovani_pudy!$F12 -> 3000 | I61: =Zpracovani_pudy!$F13 -> 1600 | J61: =Zpracovani_pudy!$F14 -> 200 | K61: =Zpracovani_pudy!$F15 -> 0.8 | L61: =Zpracovani_pudy!$F16 -> 8 | M61: =Zpracovani_pudy!$F17 -> 5 | N61: =Zpracovani_pudy!$F18 -> 1 | O61: =Zpracovani_pudy!$F19 -> 0 | P61: =Zpracovani_pudy!$F20 -> 0 | Q61: =Zpracovani_pudy!$F21 -> 0 | R61: =Zpracovani_pudy!$F22 -> 12000 | S61: =Zpracovani_pudy!$F23 -> 0 | T61: =Zpracovani_pudy!$F24 -> 150 | V61: 10.4 | W61: 1
B62: Kultivace | C62: =Zpracovani_pudy!G6 -> Plečka | D62: =Zpracovani_pudy!$G8 -> 120000 | E62: =Zpracovani_pudy!$G9 -> 70 | F62: =Zpracovani_pudy!$G10 -> 3000 | G62: =Zpracovani_pudy!$G11 -> ha | H62: =Zpracovani_pudy!$G12 -> 2100 | I62: =Zpracovani_pudy!$G13 -> 1600 | J62: =Zpracovani_pudy!$G14 -> 120 | K62: =Zpracovani_pudy!$G15 -> 0.8 | L62: =Zpracovani_pudy!$G16 -> 8 | M62: =Zpracovani_pudy!$G17 -> 7 | N62: =Zpracovani_pudy!$G18 -> 1 | O62: =Zpracovani_pudy!$G19 -> 0 | P62: =Zpracovani_pudy!$G20 -> 0 | Q62: =Zpracovani_pudy!$G21 -> 0 | R62: =Zpracovani_pudy!$G22 -> 12000 | S62: =Zpracovani_pudy!$G23 -> 0 | T62: =Zpracovani_pudy!$G24 -> 150 | V62: 8.1 | W62: 1
B63: Vláčení | C63: =Zpracovani_pudy!H6 -> Kruhová brána rotační PB 4-109 | D63: =Zpracovani_pudy!$H8 -> 34000 | E63: =Zpracovani_pudy!$H9 -> 57 | F63: =Zpracovani_pudy!$H110 -> 0 | G63: =Zpracovani_pudy!$H11 -> ha | H63: =Zpracovani_pudy!$H12 -> 2560 | I63: =Zpracovani_pudy!$H13 -> 2825 | J63: =Zpracovani_pudy!$H14 -> 200 | K63: =Zpracovani_pudy!$H15 -> 1.4 | L63: =Zpracovani_pudy!$H16 -> 8 | M63: =Zpracovani_pudy!$H17 -> 3.7 | N63: =Zpracovani_pudy!$H18 -> 0 | O63: =Zpracovani_pudy!$H19 -> 0 | P63: =Zpracovani_pudy!$H20 -> 0 | Q63: =Zpracovani_pudy!$H21 -> 0 | R63: =Zpracovani_pudy!$H22 -> 1800 | S63: =Zpracovani_pudy!$H23 -> 0 | T63: =Zpracovani_pudy!$H24 -> 150 | V63: 13.6 | W63: 1
B64: Vláčení | C64: =Zpracovani_pudy!I6 -> Brány nesené | D64: =Zpracovani_pudy!$I8 -> 46000 | E64: =Zpracovani_pudy!$I9 -> 60 | F64: =Zpracovani_pudy!$I10 -> 4950 | G64: =Zpracovani_pudy!$I11 -> ha | H64: =Zpracovani_pudy!$I12 -> 2200 | I64: =Zpracovani_pudy!$I13 -> 1350 | J64: =Zpracovani_pudy!$I14 -> 135 | K64: =Zpracovani_pudy!$I15 -> 1 | L64: =Zpracovani_pudy!$I16 -> 8 | M64: =Zpracovani_pudy!$I17 -> 6.2 | N64: =Zpracovani_pudy!$I18 -> 0 | O64: =Zpracovani_pudy!$I19 -> 0 | P64: =Zpracovani_pudy!$I20 -> 0 | Q64: =Zpracovani_pudy!$I21 -> 0 | R64: =Zpracovani_pudy!$I22 -> 2900 | S64: =Zpracovani_pudy!$I23 -> 0 | T64: =Zpracovani_pudy!$I24 -> 150 | V64: 7.5 | W64: 1
B65: Řez_větví | C65: =Zpracovani_pudy!$J6 -> Ořezávač keřů | D65: =Zpracovani_pudy!$J8 -> 80000 | E65: =Zpracovani_pudy!$J9 -> 70 | F65: =Zpracovani_pudy!$J10 -> 3000 | G65: =Zpracovani_pudy!$J11 -> ha | H65: =Zpracovani_pudy!$J12 -> 1900 | I65: =Zpracovani_pudy!$J13 -> 1400 | J65: =Zpracovani_pudy!$J14 -> 40 | K65: =Zpracovani_pudy!$J15 -> 0.3 | L65: =Zpracovani_pudy!$J16 -> 8 | M65: =Zpracovani_pudy!$J17 -> 12 | N65: =Zpracovani_pudy!$J18 -> 0 | O65: =Zpracovani_pudy!$J19 -> 0 | P65: =Zpracovani_pudy!$J20 -> 0 | Q65: =Zpracovani_pudy!$J21 -> 0 | R65: =Zpracovani_pudy!$J22 -> 5000 | S65: =Zpracovani_pudy!$J23 -> 500 | T65: =Zpracovani_pudy!$J24 -> 150 | V65: 7 | W65: 1
B66: Řez_větví | C66: =Zpracovani_pudy!$K6 -> Ořezávač větví | D66: =Zpracovani_pudy!$K8 -> 80000 | E66: =Zpracovani_pudy!$K9 -> 70 | F66: =Zpracovani_pudy!$K10 -> 3000 | G66: =Zpracovani_pudy!$K11 -> ha | H66: =Zpracovani_pudy!$K12 -> 1890 | I66: =Zpracovani_pudy!$K13 -> 1500 | J66: =Zpracovani_pudy!$K14 -> 40 | K66: =Zpracovani_pudy!$K15 -> 0.3 | L66: =Zpracovani_pudy!$K16 -> 8 | M66: =Zpracovani_pudy!$K17 -> 12 | N66: =Zpracovani_pudy!$K18 -> 0 | O66: =Zpracovani_pudy!$K19 -> 0 | P66: =Zpracovani_pudy!$K20 -> 0 | Q66: =Zpracovani_pudy!$K21 -> 0 | R66: =Zpracovani_pudy!$K22 -> 5000 | S66: =Zpracovani_pudy!$K23 -> 500 | T66: =Zpracovani_pudy!$K24 -> 150 | V66: 7.2 | W66: 1
B67: Dosazování | C67: =Zpracovani_pudy!$L6 -> Boční vrták na traktoru | D67: =Zpracovani_pudy!$L8 -> 40000 | E67: =Zpracovani_pudy!$L9 -> 50 | F67: =Zpracovani_pudy!$L10 -> x | G67: =Zpracovani_pudy!$L11 -> ha | H67: =Zpracovani_pudy!$L12 -> 1600 | I67: =Zpracovani_pudy!$L13 -> 1000 | J67: =Zpracovani_pudy!$L14 -> 15 | K67: =Zpracovani_pudy!$L15 -> 0.08 | L67: =Zpracovani_pudy!$L16 -> 8 | M67: =Zpracovani_pudy!$L17 -> 40 | N67: =Zpracovani_pudy!$L18 -> 0 | O67: =Zpracovani_pudy!$L19 -> 0 | P67: =Zpracovani_pudy!$L20 -> 0 | Q67: =Zpracovani_pudy!$L21 -> 0 | R67: =Zpracovani_pudy!$L22 -> 4000 | S67: =Zpracovani_pudy!$L23 -> 0 | T67: =Zpracovani_pudy!$L2 -> 0 | V67: 5.2 | W67: 1
B68: přeprava nateriálu | C68: =Doprava!E6 -> návěs automobilový 750 kg | D68: =Doprava!$E8 -> 120000 | E68: =Doprava!$E9 -> 50 | F68: =Doprava!$E10 -> x | G68: =Doprava!$E11 -> h | H68: =Doprava!$E12 -> 2000 | I68: =Doprava!$E13 -> 5500 | J68: =Doprava!$E14 -> 50 | K68: =Doprava!$E15 -> 0.1 | L68: =Doprava!$E16 -> 8 | M68: =Doprava!$E17 -> 5 | N68: =Doprava!$E18 -> 0 | O68: =Doprava!$E19 -> 300 | P68: =Doprava!$E20 -> 0 | Q68: =Doprava!$E21 -> 0 | R68: =Doprava!$E22 -> 3000 | S68: =Doprava!$E23 -> 0 | T68: =Doprava!$E24 -> 150 | V68: 19.5 | W68: 1
B69: Odvoz větví | C69: =Doprava!F6 -> Traktorový přívěs 5 t | D69: =Doprava!$F8 -> 200000 | E69: =Doprava!$F9 -> 50 | F69: =Doprava!$F10 -> x | G69: =Doprava!$F11 -> h | H69: =Doprava!$F12 -> 2000 | I69: =Doprava!$F13 -> 5000 | J69: =Doprava!$F14 -> 50 | K69: =Doprava!$F15 -> 0.3 | L69: =Doprava!$F16 -> 8 | M69: =Doprava!$F17 -> 18 | N69: =Doprava!$F18 -> 2 | O69: =Doprava!$F19 -> 300 | P69: =Doprava!$F20 -> 0 | Q69: =Doprava!$F21 -> 0 | R69: =Doprava!$F22 -> 2000 | S69: =Doprava!$F23 -> 100 | T69: =Doprava!$F24 -> 150 | V69: 18 | W69: 1
B70: shrabování trávy | C70: =R_prace!C6 -> shrabování trávy | V70: 0 | W70: 1
B71: drcení větví drtičem | C71: =R_prace!D6 -> drcení větví drtičem | V71: 0 | W71: 1
B72: nakládání trávy | C72: =R_prace!E6 -> nakládání trávy | V72: 0 | W72: 1
B73: setí trávy | C73: =R_prace!F6 -> setí trávy | V73: 0 | W73: 1

Sheet Traktory (hidden)
B3: Karta použitelných energetických prostředků
B5: Parametr | C5: Hodnota parametru
B6: Typ stroje (index s) nebo traktoru (index ep) | C6: Zetor 120 11 | D6: Zetor 7340 | E6: JD 5820 | F6: Zetor 6340 | G6: Zetor 6340 | H6: Massey Ferguson 5420 | I6: Zetor 120 45 | J6: Zetor 77 45 | K6: JD6250 | L6: Zetor 6345 | M6: Zetor 6340 | N6: Massey Ferguson5520
B7: Pracovní operace (po) | C7: Využití traktoru | I7: Využití traktoru
B8: Pořizovací cena nového ekvivalentu (Cp) [Kč] | C8: 1100000 | D8: 780000 | E8: 1150000 | F8: 740000 | G8: 740000 | H8: 1350000 | I8: 1100000 | J8: 780000 | K8: 1150000 | L8: 740000 | M8: 740000 | N8: 1350000
B9: Výkon (příkon) (P) [kW] | C9: 100 | D9: 60 | E9: 75 | F9: 50 | G9: 50 | H9: 90 | I9: 100 | J9: 60 | K9: 75 | L9: 50 | M9: 50 | N9: 90
B10: Pracovní záběr (B) [mm] | C10: x | D10: x | E10: x | F10: x | G10: x | H10: x | I10: x | J10: x | K10: x | L10: x | M10: x | N10: x
B11: Měrná jednotka využití (u ep vždy hodina – h) (Mj) [h; ha; t] | C11: h | D11: h | E11: h | F11: h | G11: h | H11: h | I11: h | J11: h | K11: h | L11: h | M11: h | N11: h
B12: Šířka (š) [mm] | C12: 2100 | D12: 1890 | E12: 1950 | F12: 1890 | G12: 1890 | H12: 1900 | I12: 2100 | J12: 1890 | K12: 1950 | L12: 1890 | M12: 1890 | N12: 1900
B13: Délka (d) [mm] | C13: 4600 | D13: 4100 | E13: 4200 | F13: 4100 | G13: 4100 | H13: 4150 | I13: 4600 | J13: 4100 | K13: 4200 | L13: 4100 | M13: 4100 | N13: 4150
B14: Roční využití (rW) [Mj/rok] | C14: 800 | D14: 800 | E14: 1200 | F14: 600 | G14: 600 | H14: 1200 | I14: 800 | J14: 800 | K14: 1200 | L14: 600 | M14: 600 | N14: 1200
B15: Hodinová výkonnost (pouze pro stroj) (hWs) [Mj/h] | C15: 1 | D15: 1 | E15: 1 | F15: 1 | G15: 1 | H15: 1 | I15: 1 | J15: 1 | K15: 1 | L15: 1 | M15: 1 | N15: 1
B16: Doba pro rozpis nákladů na amortizaci (6 až 8 roků) (T) [rok] | C16: 8 | D16: 8 | E16: 8 | F16: 8 | G16: 8 | H16: 8 | I16: 8 | J16: 8 | K16: 8 | L16: 8 | M16: 8 | N16: 8
B17: Spotřeba nafty soupravy uváděná u stroje (Q) [l/Mj] | C17: x | D17: x | E17: x | F17: x | G17: x | H17: x | I17: x | J17: x | K17: x | L17: x | M17: x | N17: x
B18: Počet pracovníků obsluhy (no) [1] | C18: 1 | D18: 1 | E18: 1 | F18: 1 | G18: 1 | H18: 1 | I18: 1 | J18: 1 | K18: 1 | L18: 1 | M18: 1 | N18: 1
B19: Povinné ručení (rNpr) [Kč/rok] | C19: 940 | D19: 940 | E19: 940 | F19: 940 | G19: 940 | H19: 940 | I19: 940 | J19: 940 | K19: 940 | L19: 940 | M19: 940 | N19: 940
B20: Havarijní pojištění (hp) [%] (z pořizovací ceny) | C20: 1.2 | D20: 1.2 | E20: 1.2 | F20: 1.2 | G20: 1.2 | H20: 1.2 | I20: 1.2 | J20: 1.2 | K20: 1.2 | L20: 1.2 | M20: 1.2 | N20: 1.2
B21: Silniční daň (rNsd) [Kč/rok] | C21: 0 | D21: 0 | E21: 0 | F21: 0 | G21: 0 | H21: 0 | I21: 0 | J21: 0 | K21: 0 | L21: 0 | M21: 0 | N21: 0
B22: Roční náklady na údržbu a opravy (rNú) [Kč/rok] | C22: 56000 | D22: 36000 | E22: 50000 | F22: 34000 | G22: 34000 | H22: 60000 | I22: 56000 | J22: 36000 | K22: 50000 | L22: 34000 | M22: 34000 | N22: 60000
B23: Náklady na provozní materiál (jNpm) [Kč/Mj] | C23: 0 | D23: 0 | E23: 0 | F23: 0 | G23: 0 | H23: 0 | I23: 0 | J23: 0 | K23: 0 | L23: 0 | M23: 0 | N23: 0
B24: Sazba za garážování (sg) [Kč/m2/rok] | C24: 300 | D24: 300 | E24: 300 | F24: 300 | G24: 300 | H24: 300 | I24: 300 | J24: 300 | K24: 300 | L24: 300 | M24: 300 | N24: 300

Sheet Doprava (hidden)
B3: Technologické operace: doprava materiálu, osob
B5: Parametr | C5: Hodnota parametru
B6: Typ stroje (index s) nebo traktoru (index ep) | C6: Traktorový přívěs 7 t | D6: návěs traktorový 2,5 t | E6: návěs automobilový 750 kg | F6: Traktorový přívěs 5 t | G6: Přepravavník osob
B7: Pracovní operace (po) | C7: Odvoz větví | D7: Odvoz zbytků posečené trávy | E7: přeprava nateriálu | F7: Odvoz větví | G7: přeprava osob
B8: Pořizovací cena nového ekvivalentu (Cp) [Kč] | C8: 300000 | D8: 60000 | E8: 120000 | F8: 200000 | G8: 129000
B9: Výkon (příkon) (P) [kW] | C9: 50 | D9: 50 | E9: 50 | F9: 50 | G9: 45
B10: Pracovní záběr (B) [mm] | C10: x | D10: x | E10: x | F10: x | G10: x
B11: Měrná jednotka využití (u ep vždy hodina – h) (Mj) [h; ha; t] | C11: h | D11: h | E11: h | F11: h | G11: h
B12: Šířka (š) [mm] | C12: 2000 | D12: 2100 | E12: 2000 | F12: 2000 | G12: 2950
B13: Délka (d) [mm] | C13: 5000 | D13: 6000 | E13: 5500 | F13: 5000 | G13: 3500
B14: Roční využití (rW) [Mj/rok] | C14: 50 | D14: 50 | E14: 50 | F14: 50 | G14: 40
B15: Hodinová výkonnost (pouze pro stroj) (hWs) [Mj/h] | C15: 0.3 | D15: 4 | E15: 0.1 | F15: 0.3 | G15: 0.3
B16: Doba pro rozpis nákladů na amortizaci (6 až 8 roků) (T) [rok] | C16: 8 | D16: 8 | E16: 8 | F16: 8 | G16: 8
B17: Spotřeba nafty soupravy uváděná u stroje (Q) [l/Mj] | C17: 18 | D17: 10 | E17: 5 | F17: 18 | G17: 10
B18: Počet pracovníků obsluhy (no) [1] | C18: 2 | D18: 0 | E18: 0 | F18: 2 | G18: 3
B19: Povinné ručení (rNpr) [Kč/rok] | C19: 300 | D19: 300 | E19: 300 | F19: 300 | G19: 300
B20: Havarijní pojištění (hp) [%] (z pořizovací ceny) | C20: 0 | D20: 0 | E20: 0 | F20: 0 | G20: 0
B21: Silniční daň (rNsd) [Kč/rok] | C21: 0 | D21: 0 | E21: 0 | F21: 0 | G21: 0
B22: Roční náklady na údržbu a opravy (rNú) [Kč/rok] | C22: 2000 | D22: 2000 | E22: 3000 | F22: 2000 | G22: 4500
B23: Náklady na provozní materiál (jNpm) [Kč/Mj] | C23: 100 | D23: 300 | E23: 0 | F23: 100 | G23: 0
B24: Sazba za garážování (sg) [Kč/m2/rok] | C24: 150 | D24: 150 | E24: 150 | F24: 150 | G24: 150

Sheet Zpracovani_pudy (hidden)
B3: Technologické operace: zpracování půdy, ořezávání, dosazování a vysazování
B5: Parametr | C5: Hodnota parametru
B6: Typ stroje (index s) nebo traktoru (index ep) | C6: Pluh PH 4 007 | D6: Hl. kypřič | E6: Talířový pluh | F6: smyky | G6: Plečka | H6: Kruhová brána rotační PB 4-109 | I6: Brány nesené | J6: Ořezávač keřů | K6: Ořezávač větví | L6: Boční vrták na traktoru
B7: Pracovní operace (po) | C7: Orba | D7: Hloubkové_kypření | E7: Odorávka a přiorávka | F7: Urovnání povrchu | G7: Kultivace | H7: Vláčení | I7: Vláčení | J7: Řez větví | K7: Řez větví | L7: Dosazování_a_vysazování_rostlin
B8: Pořizovací cena nového ekvivalentu (Cp) [Kč] | C8: 47000 | D8: 64600 | E8: 80000 | F8: 100000 | G8: 120000 | H8: 34000 | I8: 46000 | J8: 80000 | K8: 80000 | L8: 40000
B9: Výkon (příkon) (P) [kW] | C9: 70 | D9: 85 | E9: 70 | F9: 70 | G9: 70 | H9: 57 | I9: 60 | J9: 70 | K9: 70 | L9: 50
B10: Pracovní záběr (B) [mm] | C10: 1500 | D10: 1500 | E10: 2200 | F10: 5000 | G10: 3000 | H10: 2480 | I10: 4950 | J10: 3000 | K10: 3000 | L10: x
B11: Měrná jednotka využití (u ep vždy hodina – h) (Mj) [h; ha; t] | C11: ha | D11: ha | E11: ha | F11: ha | G11: ha | H11: ha | I11: ha | J11: ha | K11: ha | L11: ha
B12: Šířka (š) [mm] | C12: 2000 | D12: 1585 | E12: 2200 | F12: 3000 | G12: 2100 | H12: 2560 | I12: 2200 | J12: 1900 | K12: 1890 | L12: 1600
B13: Délka (d) [mm] | C13: 1590 | D13: 1590 | E13: 1400 | F13: 1600 | G13: 1600 | H13: 2825 | I13: 1350 | J13: 1400 | K13: 1500 | L13: 1000
B14: Roční využití (rW) [Mj/rok] | C14: 50 | D14: 100 | E14: 80 | F14: 200 | G14: 120 | H14: 200 | I14: 135 | J14: 40 | K14: 40 | L14: 15
B15: Hodinová výkonnost (pouze pro stroj) (hWs) [Mj/h] | C15: 1 | D15: 0.8 | E15: 0.6 | F15: 0.8 | G15: 0.8 | H15: 1.4 | I15: 1 | J15: 0.3 | K15: 0.3 | L15: 0.08
B16: Doba pro rozpis nákladů na amortizaci (6 až 8 roků) (T) [rok] | C16: 8 | D16: 8 | E16: 8 | F16: 8 | G16: 8 | H16: 8 | I16: 8 | J16: 8 | K16: 8 | L16: 8
B17: Spotřeba nafty soupravy uváděná u stroje (Q) [l/Mj] | C17: 9.1 | D17: 12.8 | E17: 9 | F17: 5 | G17: 7 | H17: 3.7 | I17: 6.2 | J17: 12 | K17: 12 | L17: 40
B18: Počet pracovníků obsluhy (no) [1] | C18: 0 | D18: 0 | E18: 0 | F18: 1 | G18: 1 | H18: 0 | I18: 0 | J18: 0 | K18: 0 | L18: 0
B19: Povinné ručení (rNpr) [Kč/rok] | C19: 0 | D19: 0 | E19: 0 | F19: 0 | G19: 0 | H19: 0 | I19: 0 | J19: 0 | K19: 0 | L19: 0
B20: Havarijní pojištění (hp) [%] (z pořizovací ceny) | C20: 0 | D20: 0 | E20: 0 | F20: 0 | G20: 0 | H20: 0 | I20: 0 | J20: 0 | K20: 0 | L20: 0
B21: Silniční daň (rNsd) [Kč/rok] | C21: 0 | D21: 0 | E21: 0 | F21: 0 | G21: 0 | H21: 0 | I21: 0 | J21: 0 | K21: 0 | L21: 0
B22: Roční náklady na údržbu a opravy (rNú) [Kč/rok] | C22: 4000 | D22: 2800 | E22: 2500 | F22: 12000 | G22: 12000 | H22: 1800 | I22: 2900 | J22: 5000 | K22: 5000 | L22: 4000
B23: Náklady na provozní materiál (jNpm) [Kč/Mj] | C23: 0 | D23: 0 | E23: 0 | F23: 0 | G23: 0 | H23: 0 | I23: 0 | J23: 500 | K23: 500 | L23: 0
B24: Sazba za garážování (sg) [Kč/m2/rok] | C24: 150 | D24: 150 | E24: 150 | F24: 150 | G24: 150 | H24: 150 | I24: 150 | J24: 150 | K24: 150 | L24: 150

Sheet Nakladani (hidden)
B3: Technologické operace: nakládání, rozmetání hnoje a TMH
B5: Parametr | C5: Hodnota parametru
B6: Typ stroje (index s) nebo traktoru (index ep) | C6: Nakladač Merlo | D6: RUR-5 | E6: Nesené rozmetadlo TMH Amazone | F6: Rosič Laser 2000 | G6: Posrřikovač s rámem | H6: Cisterna
B7: Pracovní operace (po) | C7: Nakládání hnojiv | D7: Hnojení statkovými hnojivy | E7: Pásové hnojení TMH | F7: Postřik_porostu | G7: Pásové ošetření porostu | H7: Dovoz vody
B8: Pořizovací cena nového ekvivalentu (Cp) [Kč] | C8: 1800000 | D8: 220000 | E8: 60000 | F8: 217000 | G8: 200000 | H8: 280000
B9: Výkon (příkon) (P) [kW] | C9: 60 | D9: 65 | E9: 50 | F9: 50 | G9: 50 | H9: 70
B10: Pracovní záběr (B) [mm] | C10: x | D10: 9000 | E10: 6000 | F10: 6000 | G10: 4500 | H10: x
B11: Měrná jednotka využití (u ep vždy hodina – h) (Mj) [h; ha; t] | C11: ha | D11: ha | E11: ha | F11: ha | G11: ha | H11: ha
B12: Šířka (š) [mm] | C12: 2200 | D12: 2500 | E12: 1800 | F12: 1600 | G12: 1800 | H12: 2100
B13: Délka (d) [mm] | C13: 5200 | D13: 6600 | E13: 1300 | F13: 3300 | G13: 3500 | H13: 5500
B14: Roční využití (rW) [Mj/rok] | C14: 800 | D14: 40 | E14: 100 | F14: 240 | G14: 60 | H14: 250
B15: Hodinová výkonnost (pouze pro stroj) (hWs) [Mj/h] | C15: 1.6 | D15: 0.8 | E15: 0.8 | F15: 0.8 | G15: 1 | H15: 1
B16: Doba odepisování (6 až 8 roků) (T) [rok] | C16: 8 | D16: 6 | E16: 8 | F16: 6 | G16: 8 | H16: 8
B17: Spotřeba nafty soupravy uváděná u stroje (Q) [l/Mj] | C17: 8 | D17: 15 | E17: 6 | F17: 9 | G17: 7 | H17: 6
B18: Počet pracovníků obsluhy (no) [1] | C18: 1 | D18: 0 | E18: 0 | F18: 0 | G18: 0 | H18: 0
B19: Povinné ručení (rNpr) [Kč/rok] | C19: 940 | D19: 0 | E19: 0 | F19: 0 | G19: 0 | H19: 300
B20: Havarijní pojištění (hp) [%] (z pořizovací ceny) | C20: 0 | D20: 0 | E20: 0 | F20: 0 | G20: 0 | H20: 0
B21: Silniční daň (rNsd) [Kč/rok] | C21: 0 | D21: 0 | E21: 0 | F21: 0 | G21: 0 | H21: 0
B22: Roční náklady na údržbu a opravy (rNú) [Kč/rok] | C22: 28000 | D22: 11300 | E22: 4000 | F22: 10000 | G22: 4000 | H22: 2000
B23: Náklady na provozní materiál (jNpm) [Kč/Mj] | C23: 0 | D23: 0 | E23: Podle spotřeby hnojiva | F23: 0 | G23: Chem. prostředky | H23: Voda
B24: Sazba za garážování (sg) [Kč/m2/rok] | C24: 300 | D24: 150 | E24: 150 | F24: 150 | G24: 150 | H24: 150

Sheet Sklizen (hidden)
B3: Technologické operace: sklizeň, sušení a lisování
B5: Parametr | C5: Hodnota parametru
B6: Typ stroje (index s) nebo traktoru (index ep) | C6: Mulčovač JD se zásobníkem | D6: Mulčovač nožový | E6: Mulčovač kladívkový | F6: JD 2023 | G6: Obraceč shrnovač rotorový | H6: Obraceč shrnovač dopravníkový | I6: Mulčovač JD se zásobníkem | J6: Hranolový lis | K6: sběrací návěs Pottinger | L6: Lis do vaku
B7: Pracovní operace (po) | C7: Sečení se sběrem | D7: Sečení beze sběru | E7: Sečení beze sběru | F7: Sečení beze sběru | G7: Sušení trávy | H7: Sušení trávy | I7: Sečení se sběrem | J7: Lisování trávy | K7: Sběr a odvoz | L7: Lisování_trávy_do_vaků
B8: Pořizovací cena nového ekvivalentu (Cp) [Kč] | C8: 200000 | D8: 2500000 | E8: 3500000 | F8: 150000 | G8: 350000 | H8: 4000000 | I8: 2500000 | J8: 200000 | K8: 40000 | L8: 40000
B9: Výkon (příkon) (P) [kW] | C9: 65 | D9: 30 | E9: 55 | F9: 15 | G9: 50 | H9: 65 | I9: 35 | J9: 4 | K9: 90 | L9: 85
B10: Pracovní záběr (B) [mm] | C10: x | D10: x | E10: x | F10: x | G10: x | H10: x | I10: x | J10: x | K10: x | L10: x
B11: Měrná jednotka využití (u ep vždy hodina – h) (Mj) [h; ha; t] | C11: ha | D11: ha | E11: ha | F11: h | G11: ha | H11: ha | I11: ha | J11: ha | K11: ha | L11: ha
B12: Šířka (š) [mm] | C12: 1350 | D12: 12000 | E12: 1200 | F12: 1200 | G12: 1500 | H12: 15000 | I12: 12000 | J12: 6000 | K12: 6000 | L12: 6000
B13: Délka (d) [mm] | C13: 5500 | D13: 12000 | E13: 1500 | F13: 12000 | G13: 2400 | H13: 27000 | I13: 12000 | J13: 6000 | K13: 6000 | L13: 6000
B14: Roční využití (rW) [Mj/rok] | C14: 20 | D14: 20 | E14: 40 | F14: 20 | G14: 100 | H14: 40 | I14: 25 | J14: 40 | K14: 40 | L14: 40
B15: Hodinová výkonnost (pouze pro stroj) (hWs) [Mj/h] | C15: 0.08 | D15: 0.1 | E15: 1 | F15: 0.08 | G15: 8 | H15: 9 | I15: 10 | J15: 11 | K15: 12 | L15: 9 | M15: 14 | N15: 15 | O15: 16 | P15: 17 | Q15: 18 | R15: 19 | S15: 20 | T15: 21 | U15: 22 | V15: 23 | W15: 24
B16: Doba pro rozpis nákladů na amortizaci (6 až 8 roků) (T) [rok] | C16: 8 | D16: 8 | E16: 5 | F16: 10 | G16: 10 | H16: 10 | I16: 10 | J16: 10 | K16: 10 | L16: 10
B17: Spotřeba nafty soupravy uváděná u stroje (Q) [l/Mj] | C17: 82 | D17: 0 | E17: 3 | F17: 0 | G17: 0 | H17: 0 | I17: 0 | J17: 0 | K17: 0 | L17: 0
B18: Počet pracovníků obsluhy (no) [1] | C18: 0 | D18: 3 | E18: 1 | F18: 8 | G18: 2 | H18: 2 | I18: 1 | J18: 2 | K18: 2 | L18: 2
B19: Povinné ručení (rNpr) [Kč/rok] | C19: 0 | D19: 0 | E19: 0 | F19: 0 | G19: 0 | H19: 0 | I19: 0 | J19: 0 | K19: 0 | L19: 0
B20: Havarijní pojištění (hp) [%] (z pořizovací ceny) | C20: 0 | D20: 0 | E20: 0 | F20: 0 | G20: 0 | H20: 0 | I20: 0 | J20: 0 | K20: 0 | L20: 0
B21: Silniční daň (rNsd) [Kč/rok] | C21: 0 | D21: 0 | E21: 0 | F21: 0 | G21: 0 | H21: 0 | I21: 0 | J21: 0 | K21: 0 | L21: 0
B22: Roční náklady na údržbu a opravy (rNú) [Kč/rok] | C22: 6800 | D22: 100000 | E22: 2000 | F22: 120000 | G22: 4000 | H22: 4500 | I22: 25000 | J22: 6000 | K22: 3000 | L22: 4500
B23: Náklady na provozní materiál (jNpm) [Kč/Mj] | C23: 0 | D23: 5000 | E23: 0 | F23: 6000 | G23: 600 | H23: 1400 | I23: 2400 | J23: 800 | K23: 800 | L23: 5000
B24: Sazba za garážování (sg) [Kč/m2/rok] | C24: 150 | D24: 300 | E24: 150 | F24: 300 | G24: 300 | H24: 300 | I24: 300 | J24: 300 | K24: 300 | L24: 300

Sheet R_prace (hidden)
B3: Technologické operace: ostatní ruční práce
B5: Parametr | C5: Hodnota parametru
B6: Pracovní operace (po) | C6: shrabování trávy | D6: drcení větví drtičem | E6: nakládání trávy | F6: setí trávy
B7: Potřeba Lh/ha | C7: 120 | D7: 60 | E7: 80 | F7: 30
B8: Náklady na stravné Kč/ha | C8: 975 | D8: 490 | E8: 650 | F8: 260
B9: Náklady na Stravování Kč/Lh | C9: 8.12 | D9: 8.16 | E9: 8.12 | F9: 8.6
B10: Náklady na ubytování Kč/ha | C10: 450 | D10: 240 | E10: 300 | F10: 120
B11: Náklady na ubytování Kč/lh | C11: 3.75 | D11: 4 | E11: 3.75 | F11: 4
B12: Denní výkonnost Rostl./drátků | C12: 445 | D12: 800 | E12: 666 | F12: 1666
B13: Náklady na dopravu Kč /ha | C13: 600 | D13: 300 | E13: 400 | F13: 150
B14: Náklady na dopravu Kč/Lh | C14: 5 | D14: 5 | E14: 5 | F14: 5
B16: Mzdové náklady včetně odvodů Kč/ha | C16: 10200 | D16: 5100 | E16: 6800 | F16: 2550
B17: Mzdové náklady včetně odvodů Kč/Lh | C17: 85 | D17: 85 | E17: 85 | F17: 85
B18: Celkové náklady Kč/Lh (Mzdové, stravné, ubytování, doprava) | C18: 101.87 | D18: 102.16 | E18: 101.87 | F18: 102.6

Sheet Hnojiva (hidden)
B3: Ceny minerálních hnojiv
B5: Poř. č. | C5: Druh hnojiva a obsah prvků v % | D5: Cena [Kč.t-1]
D6: Od | E6: Do
B7: a. Dusíkatá
B8: 1 | C8: Síran amonný 21 % N + 24 % S, VL (SA) | D8: 3700 | E8: 4100
B9: 2 | C9: Síran amonný 20 % N + 20,5 % S, VL, granulovaný (SAG) | D9: 4800 | E9: 5100
B10: 3 | C10: Síran amonný 21 % N + 20% S, PE (SAG) | D10: 5070 | E10: 5300
B11: 4 | C11: LAV 27,5 % N, VL | D11: 6150 | E11: 7050
B12: 5 | C12: LAD 27,5% N + 4% MgO, VL | D12: 5100 | E12: 6500
B13: 6 | C13: LAD 27,5% N + 4% MgO, PE | D13: 6900 | E13: 8600
B14: 7 | C14: LV 15 % N, VL | E14: 5900
B15: 8 | C15: LV 15 % N, PE | D15: 5670 | E15: 6900
B16: 9 | C16: Močovina 46 % N, VL | D16: 8400 | E16: 9400
B17: 10 | C17: Močovina 46 % N, PE | D17: 8900 | E17: 10000
B18: 11 | C18: DASA 26-13 | D18: 5300 | E18: 8500
B19: 12 | C19: Entec 26 (26 % N, 13 % S) PE | E19: 1040
B20: b. Fosforečná jednosložková
B21: 13 | C21: Superfosfát 18 % P2O5, granulovaný, VL | D21: 6000 | E21: 6500
B22: 14 | C22: Superfosfát trojitý 45 % P2O5, granulovaný, VL | D22: 16500 | E22: 17700
B23: c. Draselná jednosložková
B24: 15 | C24: Draselná sůl - 60 % K2O, granulovaná, VL | D24: 10500 | E24: 13550
B25: 16 | C25: Draselná sůl - 60 % K2O, granulovaná, PE | D25: 9300 | E25: 11000
B26: 17 | C26: Síran draselný 50 % K2O, krystalický, PE | D26: 15470 | E26: 22992
B27: 18 | C27: Síran draselný 50 % K2O, granulovaný, PE | D27: 12600 | E27: 13500
B28: 19 | C28: Kamex 40 % K2O, 6 % MgO, granulovaný, PE(Korn-Kali) | D28: 9960 | E28: 10800
B29: d. Kombinovaná a vícesložková
B30: 20 | C30: Amofos 12 % - 52 %, VL | D30: 12000 | E30: 12490
B31: 21 | C31: Amofos 12 % - 52 %, PE | D31: 16200 | E31: 16700
B32: 22 | C32: Cererit 10% N, 10% P2O5, 14% K2O, 13% MgO, B, Mo, Zn, Cu, PE | D32: 10250 | E32: 14700
B33: 23 | C33: NPK 15 % N, 15 % P2O5, 15 % K2O, VL | D33: 8800 | E33: 9900
B34: 24 | C34: NPK 15 % N, 15 % P2O5, 15 % K2O, PE | D34: 9860 | E34: 11280
B35: e. Hořečnatá
B36: 25 | C36: Hořká sůl 16% MgO PE | D36: 8500 | E36: 9000
B37: 26 | C37: Hořká sůl microtop 16% MgO, 12,5 %S, 1% Mn, 1% B PE | D37: 18000 | E37: 21000
B38: 27 | C38: Kieserit 24 % MgO (54 % S, Cl do 3 %) krystal., VL | E38: 7900
B39: 28 | C39: Kieserit 24 % MgO (54 % S, Cl do 3 %) granul., PE | D39: 8900 | E39: 10560
B40: 29 | C40: Patentkali (30% K2O, 10 % MgO, 17 % S) PE | D40: 12000 | E40: 14500
B41: f. Vápenatá
B42: 30 | C42: Vápenec jemně mletý B (50 % CaO), VL | D42: 643 | E42: 659
B43: 31 | C43: Dolomitický vápenec mletý (50 % CaO+MgO), VL | D43: 622 | E43: 694
B44: 32 | C44: Dolomitický vápenec mletý (50 % CaO+MgO), PE | D44: 1615 | E44: 3100
B45: g. Kapalná - cena v Kč/t
B46: 33 | C46: DAM 390 33 % N | D46: 7800 | E46: 8000
B47: h. Kapalná - cena v Kč/l
B48: 34 | C48: Vegaflor (6 % N, 5,7 % P2O5, 6 K2O) 25 lt, 200 lt | D48: 30.6 | E48: 34.4
B49: 35 | C49: Campofort Garant Ca (15 % N, 7,5 % CaO) | D49: 27.5 | E49: 32
B50: 36 | C50: Campofort Garant K (13% N, 11 % K2O, 5,6% S) | D50: 32 | E50: 37
B51: 37 | C51: Campofort Garant P (34% P2O5, 17% N, 5% MgO, 4% S) | D51: 33 | E51: 37
B52: 38 | C52: Campofort Special B (15 % N, 2,5 % MgO, 2 % S, 1,5 % B) | D52: 28.5 | E52: 34
B53: 39 | C53: Campofort Special Fe (15 % N, 2 % MgO, 2 % S, 0,9 % Fe) | D53: 41.5 | E53: 47
B54: 40 | C54: Campofort Special Mn (15 % N, 3 % MgO, 3 % S, 1,5 % Mn) | D54: 37.5 | E54: 43
B55: 41 | C55: Campofort Special Zn (15 % N, 3,5 % MgO, 2,5 % S, 1 % Zn) | D55: 28.5 | E55: 34
B56: 42 | C56: Campofort Forte (13 % N, 3 % P2O5, 3 %K2O, stopové prvky) | D56: 38.5 | E56: 44
B57: 43 | C57: Campofort Plus (15 % N, 3,5 % MgO, 3 % S) | D57: 25.5 | E57: 30
B58: 44 | C58: Campofort Ultra Ca (7,5 % CaO, 2 % MgO, 0,1 % B) | D58: 47 | E58: 53
B59: 45 | C59: Campofort Fosfamid (8 % N, 10 % P205, 0,4 % Mn) | D59: 41.5 | E59: 46
B60: 46 | C60: Fortestim – alfa (15 % N, 5 % MgO, 4 % S, 0,5 % Zn) | D60: 51.61 | E60: 55
B61: 47 | C61: Fortestim – beta (15 % N, 5 % MgO, 4 % S, 1 % B) | D61: 51.61 | E61: 55
B62: 48 | C62: Fortestim – gama ( 12 % N, 6 % P2O5, 6 % K2O) | D62: 51.61 | E62: 55
B63: 49 | C63: Fortestim – delta (15 % N, 2,5 % MgO, 2 % S, 0,05 % Fe, 1 % Zn) | D63: 51.61 | E63: 55
B64: 50 | C64: Wuxal Amonical (CaO 15 %, Mg 0,5 %, Zn 0,5 %) 20 lt | D64: 108 | E64: 114
B65: 51 | C65: Wuxal Microplant (N 8 %, P2O5 8 %, K2O 6 %, stopové prvky) 10 lt | D65: 236 | E65: 246
B66: 52 | C66: Wuxal Super (N 8 %, P2O5 8 %, K2O 6%, stopové prvky) 200 lt | D66: 67 | E66: 75
B67: 53 | C67: Wuxal SUS Boron NP 8-10 (+ B 7 %, stopové prvky) 100 lt | D67: 162 | E67: 172
B68: 54 | C68: Wuxal SUS Kalcium (N 10 %, CaO 15%, MgO 2 %, stopové prvky) 100 lt | D68: 131 | E68: 139
B69: 55 | C69: Wuxal SUS Kombi Mg NK 20-15+4 MgO (+ stopové prvky) 100 lt | D69: 145 | E69: 154
B70: 56 | C70: Samppi NPK 8-3-3 (dále MgO 2 %, CaO 1 %, MnO 1 %, stopové prvky) | D70: 349 | E70: 375
B72: Legenda k tabulce:
B73: Ceny jsou bez DPH. U kapalných hnojiv je cena v Kč/l, u ostatních v Kč/t.
B74: PE - pytle
B75: VL - volně ložené
B77: Tabulka obsahuje výběr z nejběžnějších hnojiv. Sortiment je podstatně obsáhlejší zejména u kombinovaných, vícesložkových a kapalných hnojiv.
B78: Dostupnost je odlišná podle jednotlivých distributorů. Ceny závisí na velikosti balení a regionu.
B80: Pramen: Aktuální ceny od výrobců nebo distributorů.
B81: Zpracoval: Vladimír Scheufler

Sheet Pesticidy (hidden)
B3: Ceny pesticidů, mořidel a dalších registrovaných přípravků
B4: a prostředků na ochranu rostlin
B6: Poř. č. | C6: Druh přípravku - obchodní název | D6: Měrná jednotka | E6: Cena [Kč.měr.j.-1]
E7: Od | F7: Do
B8: a. Herbicidy (H)
B9: 1 | C9: Adengo | D9: lt | F9: 3300
B10: 2 | C10: Afalon 45 SC | D10: lt | E10: 589 | F10: 590
B11: 3 | C11: Agil 100 EC | D11: lt | F11: 985
B12: 4 | C12: Agritox 50 SL | D12: lt | E12: 155 | F12: 158
B13: 5 | C13: Agroklasik | D13: lt | E13: 135 | F13: 155
B14: 6 | C14: Agroxone 750 | D14: lt | F14: 234
B15: 7 | C15: Aminex 500 SL | D15: lt | E15: 155 | F15: 167
B16: 8 | C16: Arkem+CZ 600 | D16: ks | E16: 3100 | F16: 3457
B17: 9 | C17: Arrat | D17: kg | E17: 1891 | F17: 2188
B18: 10 | C18: Asulox 40 SL | D18: lt | E18: 385 | F18: 397
B19: 11 | C19: Atlantis | D19: lt | E19: 4525 | F19: 4532
B20: 12 | C20: Attribut 70 WG | D20: kg | E20: 10915 | F20: 10918
B21: 13 | C21: Aurora 40 WG | D21: kg | E21: 5690 | F21: 5700
B22: 14 | C22: Aurora Super SG | D22: kg | F22: 395
B23: 15 | C23: Autor | D23: lt | E23: 769 | F23: 785
B24: 16 | C24: Axial | D24: lt | E24: 924 | F24: 932
B25: 17 | C25: Axial Plus | D25: lt | E25: 924 | F25: 939
B26: 18 | C26: Banvel 480 S | D26: lt | E26: 1459 | F26: 1474
B27: 19 | C27: Barclay Gallup 360 | D27: lt | E27: 139 | F27: 145
B28: 20 | C28: Basta 15 | D28: lt | E28: 558 | F28: 559
B29: 21 | C29: Brasan 540 EC | D29: lt | E29: 765 | F29: 790
B30: 22 | C30: Basagran | D30: lt | E30: 871 | F30: 955
B31: 23 | C31: Basagran Super | D31: lt | E31: 820 | F31: 955
B32: 24 | C32: Betanal Expert | D32: lt | E32: 899 | F32: 926
B33: 25 | C33: Betasana SC | D33: lt | E33: 260 | F33: 264
B34: 26 | C34: Betasana Trio SC | D34: lt | F34: 579
B35: 27 | C35: Betoxon 65 WDG | D35: kg | E35: 397 | F35: 419
B36: 28 | C36: Boxer | D36: lt | E36: 220 | F36: 233
B37: 29 | C37: Bromotril 25 SC | D37: lt | E37: 550 | F37: 559
B38: 30 | C38: Burex 430 DKV | D38: lt | F38: 249
B39: 31 | C39: Butisan 400 SC | D39: lt | E39: 675 | F39: 740
B40: 32 | C40: Butisan Star | D40: lt | E40: 869 | F40: 970
B41: 33 | C41: Butoxone 400 | D41: lt | E41: 490 | F41: 525
B42: 34 | C42: Caliban | D42: kg | F42: 2999
B43: 35 | C43: Calipuron | D43: lt | E43: 230 | F43: 233
B44: 36 | C44: Callisto 480 SC | D44: lt | E44: 3785 | F44: 3858
B45: 37 | C45: Cambio | D45: lt | E45: 280 | F45: 285
B46: 38 | C46: Cirrus CS | D46: lt | E46: 3715 | F46: 3910
B47: 39 | C47: Click Plus | D47: lt | E47: 358 | F47: 359
B48: 40 | C48: Clinic | D48: lt | F48: 150
B49: 41 | C49: Cliophar 300 SL | D49: lt | E49: 2650 | F49: 2850
B50: 42 | C50: Command 36 CS | D50: lt | E50: 3750 | F50: 3950
B51: 43 | C51: Corello | D51: kg | F51: 3184
B52: 44 | C52: Corzal | D52: lt | E52: 262 | F52: 265
B53: 45 | C53: Cougar SC | D53: lt | F53: 608
B54: 46 | C54: Devrinol 45 F | D54: lt | F54: 505
B55: 47 | C55: Dicopur D EXTRA | D55: lt | E55: 205 | F55: 225
B56: 48 | C56: Dicopur M 750 | D56: lt | E56: 237 | F56: 245
B57: 49 | C57: Dicotex | D57: lt | F57: 580
B58: 50 | C58: Dominator | D58: lt | E58: 147 | F58: 156
B59: 51 | C59: Dual Gold 960 EC | D59: lt | F59: 655
B60: 52 | C60: Esteron | D60: lt | E60: 360 | F60: 362
B61: 53 | C61: Ethosat 500 SC | D61: lt | F61: 735
B62: 54 | C62: Fenifan | D62: lt | E62: 260 | F62: 264
B63: 55 | C63: Flurostar | D63: lt | E63: 759 | F63: 786
B64: 56 | C64: Flirt | D64: lt | E64: 414 | F64: 420
B65: 57 | C65: Fusilade Forte 150 EC | D65: lt | E65: 795 | F65: 848
B66: 58 | C66: Galera | D66: lt | E66: 2952 | F66: 3100
B67: 59 | C67: Galigan 240 EC | D67: lt | F67: 1299
B68: 60 | C68: Gardoprim Plus Gold 500 SC | D68: lt | E68: 346 | F68: 348
B69: 61 | C69: Garlon 4 EC | D69: lt | E69: 1106 | F69: 1159
B70: 62 | C70: Glean 75 WG | D70: kg | E70: 19400 | F70: 19750
B71: 63 | C71: Glyfogan 480 SL | D71: lt | E71: 145 | F71: 160
B72: 64 | C72: Glyfos | D72: lt | E72: 135 | F72: 149
B73: 65 | C73: Goal 2 E | D73: lt | E73: 1392 | F73: 1430
B74: 66 | C74: Golatron | D74: lt
B75: 67 | C75: Goltix Top | D75: lt | E75: 769 | F75: 780
B76: 68 | C76: Granstar 75 WG | D76: kg | E76: 17400 | F76: 18300
B77: 69 | C77: Grasp 25 SC + AtPlus | D77: ks | E77: 4990 | F77: 7500
B78: 70 | C78: Grid + Trend | D78: kg | E78: 39950 | F78: 40750
B79: 71 | C79: Grodyl 75 WG | D79: kg | E79: 17300 | F79: 17950
B80: 72 | C80: Guardian Safe Max | D80: lt | F80: 368
B81: 73 | C81: Guardian Extra | D81: lt | E81: 360 | F81: 365
B82: 74 | C82: Hector 53,6 WG | D82: kg | F82: 13500
B83: 75 | C83: Husar | D83: kg | E83: 4263 | F83: 4326
B84: 76 | C84: Ipiron 45 SC | D84: lt | F84: 555
B85: 77 | C85: Kantor | D85: lt | F85: 5380
B86: 78 | C86: Kantor Plus | D86: kg | E86: 12705 | F86: 13340
B87: 79 | C87: Kaput | D87: lt | E87: 158 | F87: 160
B88: 80 | C88: Kaput Harvest | D88: lt | E88: 135 | F88: 150
B89: 81 | C89: Kerb 50 WP | D89: kg | E89: 1486 | F89: 1528
B90: 82 | C90: Kontakt Twin | D90: lt | F90: 369
B91: 83 | C91: Laudis | D91: lt | E91: 660 | F91: 670
B92: 84 | C92: Lentipur 500 FW | D92: lt | E92: 220 | F92: 222
B93: 85 | C93: Lintur 70 WG | D93: kg | E93: 2140 | F93: 2250
B94: 86 | C94: Logran 20 WG | D94: kg | E94: 5373 | F94: 6615
B95: 87 | C95: Lontrel 300 | D95: lt | E95: 2997 | F95: 3509
B96: 88 | C96: Lumax | D96: lt | E96: 420 | F96: 434
B97: 89 | C97: MaisTer + Mero Pack | D97: ks | E97: 11939 | F97: 11940
B98: 90 | C98: Maraton | D98: lt | E98: 199 | F98: 200
B99: 91 | C99: Merlin 750 WG | D99: kg | E99: 8036 | F99: 8161
B100: 92 | C100: Metriphar 70 WP | D100: kg | E100: 1530 | F100: 1550
B101: 93 | C101: Milagro | D101: lt | E101: 1119 | F101: 1135
B102: 94 | C102: Milagro Extra 6 OD | D102: lt | E102: 1186 | F102: 1845
B103: 95 | C103: Mistral | D103: kg | E103: 1449 | F103: 1450
B104: 96 | C104: Mitra | D104: lt | E104: 710 | F104: 749
B105: 97 | C105: Mix Double EC | D105: lt | E105: 660 | F105: 670
B106: 98 | C106: Modown 4 F | D106: lt | E106: 550 | F106: 580
B107: 99 | C107: Monitor75WG | D107: ks | E107: 4635 | F107: 5495
B108: 100 | C108: Mustang | D108: lt | E108: 751 | F108: 771
B109: 101 | C109: Mustang Forte | D109: lt | E109: 420 | F109: 433
B110: 102 | C110: Oblix 500 SC | D110: lt | F110: 729
B111: 103 | C111: Optica Trio | D111: lt | F111: 238
B112: 104 | C112: Pantera QT | D112: lt | E112: 529 | F112: 559
B113: 105 | C113: Pardner 22.5 EC | D113: lt | E113: 412 | F113: 435
B114: 106 | C114: Pendigan 330 EC | D114: lt | F114: 243
B115: 107 | C115: Pike | D115: kg | F115: 7500
B116: 108 | C116: Plateen 41,5 WG | D116: kg | E116: 675 | F116: 706
B117: 109 | C117: Protugan 50 SC | D117: lt | E117: 229 | F117: 239
B118: 110 | C118: Protugan Super | D118: lt | F118: 276
B119: 111 | C119: Puma Extra | D119: lt | E119: 790 | F119: 1050
B120: 112 | C120: Pyramin Turbo | D120: lt | E120: 340 | F120: 377
B121: 113 | C121: Racer 25 EC | D121: lt | F121: 669
B122: 114 | C122: Refine + Trend | D122: ks | E122: 2010 | F122: 2133
B123: 115 | C123: Reglone 40 | D123: lt | E123: 595 | F123: 597
B124: 116 | C124: Roundup Klasik | D124: lt | E124: 149 | F124: 189
B125: 117 | C125: Roundup Biaktiv | D125: lt | F125: 247
B126: 118 | C126: Roundup Rapid | D126: lt | E126: 259 | F126: 292
B127: 119 | C127: Safari 50 WG + Trend | D127: kg | E127: 24999 | F127: 25777
B128: 120 | C128: Sekator OD | D128: lt | E128: 2595 | F128: 3039
B129: 121 | C129: Sencor 70 WP | D129: kg | E129: 1538 | F129: 1753
B130: 122 | C130: Starane 250 EC | D130: lt | E130: 993 | F130: 1198
B131: 123 | C131: Stemat Super | D131: lt | F131: 730
B132: 124 | C132: Stomp 400 SC | D132: lt | E132: 389 | F132: 423
B133: 125 | C133: Stomp 330 E | D133: lt | F133: 255
B134: 126 | C134: Sumimax | D134: kg | F134: 6650
B135: 127 | C135: Sultan 50 SC | D135: lt | E135: 839 | F135: 840
B136: 128 | C136: Syncuran 80 DP | D136: kg | F136: 300
B137: 129 | C137: Tandem Stefes FL | D137: lt | E137: 850 | F137: 884
B138: 130 | C138: Targa Super 5 EC | D138: lt | E138: 569 | F138: 638
B139: 131 | C139: Titus 25 WG | D139: kg | E139: 21340 | F139: 21940
B140: 132 | C140: Titus Plus WG + Trend | D140: ks | E140: 2700 | F140: 2750
B141: 133 | C141: Tolian Flo | D141: lt | E141: 210 | F141: 249
B142: 134 | C142: Tolurex 50 SC | D142: lt | E142: 219 | F142: 220
B143: 135 | C143: Toluron 500 FW | D143: lt | F143: 220
B144: 136 | C144: Tomigan 250 EC | D144: lt | F144: 999
B145: 137 | C145: Tornado | D145: lt | E145: 690 | F145: 745
B146: 138 | C146: Touchdown Quattro | D146: lt | E146: 142 | F146: 178
B147: 139 | C147: Trophy | D147: lt | E147: 338 | F147: 368
B148: 140 | C148: Tropotox 40 SL | D148: lt | E148: 492 | F148: 512
B149: 141 | C149: Troy 480 | D149: lt | F149: 606
B150: 142 | C150: Venzar 80 WP | D150: kg | E150: 1700 | F150: 1795
B151: 143 | C151: Wing-P | D151: lt | F151: 317
B152: 144 | C152: Wizard EC | D152: lt | F152: 365
B153: 145 | C153: Zeus | D153: kg | F153: 3348
B154: b. Fungicidy (F)
B155: 146 | C155: Acanto | D155: lt | E155: 1100 | F155: 1126
B156: 147 | C156: Acrobat MZ | D156: kg | E156: 562 | F156: 603
B157: 148 | C157: Akord | D157: lt | E157: 454 | F157: 463
B158: 149 | C158: Alert S | D158: lt | E158: 599 | F158: 619
B159: 150 | C159: Aliette 80 WP | D159: kg | E159: 890 | F159: 899
B160: 151 | C160: Alliette Bordeaux | D160: kg | E160: 288 | F160: 290
B161: 152 | C161: Altima 500 SC | D161: lt | E161: 2095 | F161: 2241
B162: 153 | C162: Amistar | D162: lt | E162: 1750 | F162: 1785
B163: 154 | C163: Amistar Opti | D163: lt | E163: 586 | F163: 604
B164: 155 | C164: Amistar Top | D164: lt | E164: 1843 | F164: 1892
B165: 156 | C165: Apel | D165: lt | F165: 760
B166: 157 | C166: Amistar Xtra | D166: lt | E166: 1319 | F166: 1516
B167: 158 | C167: Archer Top 400 EC | D167: lt | E167: 827 | F167: 846
B168: 159 | C168: Artea 330 EC | D168: lt | E168: 1399 | F168: 1478
B169: 160 | C169: Artea Plus | D169: lt | E169: 1391 | F169: 1549
B170: 161 | C170: Atlas | D170: lt | F170: 2986
B171: 162 | C171: Baycor 25 WP | D171: kg | E171: 920 | F171: 932
B172: 163 | C172: Bravo 500 | D172: lt | F172: 359
B173: 164 | C173: Bumper 25 EC | D173: lt | F173: 999
B174: 165 | C174: Bumper Super | D174: lt | E174: 832 | F174: 859
B175: 166 | C175: Cabrio Top | D175: kg | E175: 610 | F175: 651
B176: 167 | C176: Capitan 25EW | D176: lt | E176: 1020 | F176: 1120
B177: 168 | C177: Capalo | D177: lt | E177: 767 | F177: 768
B178: 169 | C178: Captan 50 WP | D178: kg | E178: 219 | F178: 332
B179: 170 | C179: Caramba | D179: lt | E179: 784 | F179: 845
B180: 171 | C180: Casoar | D180: lt | E180: 520 | F180: 550
B181: 172 | C181: Caryx | D181: lt | F181: 743
B182: 173 | C182: Cerelux Plus | D182: lt | E182: 1020 | F182: 1022
B183: 174 | C183: Clarinet 20 SC | D183: lt | F183: 985
B184: 175 | C184: Contans WG | D184: kg | F184: 620
B185: 176 | C185: Criterium | D185: kg | E185: 459 | F185: 495
B186: 177 | C186: Cuprocaffaro | D186: kg | E186: 209 | F186: 215
B187: 178 | C187: Cuproxat SC | D187: lt | E187: 192 | F187: 196
B188: 179 | C188: Curenox 50 | D188: kg | F188: 209
B189: 180 | C189: Curzate K | D189: kg | F189: 363
B190: 181 | C190: Curzate M | D190: kg | E190: 455 | F190: 481
B191: 182 | C191: Curzate Gold | D191: kg | E191: 460 | F191: 486
B192: 183 | C192: Delan 700 WDG | D192: kg | E192: 1227 | F192: 1329
B193: 184 | C193: Discus | D193: kg | E193: 3895 | F193: 4274
B194: 185 | C194: Dithane Neo-Tec | D194: kg | E194: 285 | F194: 291
B195: 186 | C195: Domark | D195: lt | E195: 1250 | F195: 1287
B196: 187 | C196: Duett | D196: lt | F196: 399
B197: 188 | C197: Duet Top | D197: lt | E197: 1100 | F197: 1161
B198: 189 | C198: Electis | D198: kg | E198: 479 | F198: 486
B199: 190 | C199: Falcon 460 EC | D199: lt | E199: 1208 | F199: 1226
B200: 191 | C200: Fandango 250 EC | D200: lt | E200: 1290 | F200: 1351
B201: 192 | C201: Fantic F | D201: kg | F201: 545
B202: 193 | C202: Fantic M | D202: kg | E202: 455 | F202: 459
B203: 194 | C203: Folpan 80 WDG | D203: kg | E203: 389 | F203: 409
... 216 more rows
